Workbook

Sheet CAPA
A14: ANEXO III
A17: Orçamento de Referência e Cronograma Físico-Financeiro
T33: '

Sheet CRONOGRAMA
A1: '
A6: CRONOGRAMA FÍSICO-FINANCEIRO
A7: ITEM | B7: DISCRIMINAÇÃO | D7: SEMESTRE | AL7: TOTAL | AO7: Duração | AR7: PORTE
D9: 1º MÊS | H9: 2º MÊS | N9: 3º MÊS | T9: 4º MÊS | Z9: 5º MÊS | AF9: 6º MÊS
AO10: dias | AP10: semana | AQ10: quinzena
A12: 1 | B12: PRODUTO / BARRAGEM | C12: PORTE | D12: =D18+D23+D28+D34+D43+D49+D54+D59+D64+D69+D74 -> 397598.8223 | H12: =H18+H23+H28+H33+H38+H43+H49+H54+H59+H64+H69+H74 -> 1090556.77 | N12: =N18+N23+N28+N33+N38+N43+N48+N53+N59+N64+N69+N74 -> 1130316.652 | T12: =T18+T23+T28+T33+T38+T43:Y43+T48+T53+T58+T63+T68+T74 -> 675917.9979 | Z12: =Z18+Z23+Z28+Z33+Z38+Z43+Z48+Z53+Z58+Z63+Z68+Z73 -> 516878.469 | AF12: =AF68+AF73 -> 391918.8391 | AL12: =SUM(D12:AK12) -> 4203187.55
D13: =D12/$AN78 -> 0.09459459459 | H13: =H12/$AN78 -> 0.2594594595 | N13: =N12/$AN78 -> 0.2689189189 | T13: =T12/$AN78 -> 0.1608108108 | Z13: =Z12/$AN78 -> 0.122972973 | AF13: =AF12/$AN78 -> 0.09324324324 | AL13: =SUM(D13:AK13) -> 1
A14: 1.1 | B14: RPSB / WBS 2104 - RESERVATÓRIO AREIAS | C14: Médio | D14: Etapa1 | E14: Etapa 2 | F14: Etapa 3 | G14: Etapa 4 | H14: Etapa5 | I14: Etapa6 | J14: Etapa7 | K14: Etapa8 | L14: Etapa9 | M14: Etapa10
D15: =D16*ETAPAS!$V$33 -> 10223.96972 | E15: =E16*ETAPAS!$V$33 -> 23855.92934 | F15: =F16*ETAPAS!$V$33 -> 34079.89905 | G15: =G16*ETAPAS!$V$33 -> 17039.94953 | H15: =H16*ETAPAS!$V$33 -> 34079.89905 | I15: =I16*ETAPAS!$V$33 -> 17039.94953 | J15: =J16*ETAPAS!$V$33 -> 34079.89905 | K15: =K16*ETAPAS!$V$33 -> 51119.84858 | L15: =L16*ETAPAS!$V$33 -> 68159.79811 | M15: =M16*ETAPAS!$V$33 -> 51119.84858 | AL15: =SUM(D15:AK15) -> 340798.9905 | AO15: 30 | AP15: =AO15/5 -> 6 | AQ15: =AP15/2 -> 3 | AR15: Médio | AU15: 20 | AV15: 5 | AW15: =AU15/AV15 -> 4
D16: =ETAPAS!$F$18 -> 0.03 | E16: =ETAPAS!$F$19 -> 0.07 | F16: =ETAPAS!$F$20 -> 0.1 | G16: =ETAPAS!$F$21 -> 0.05 | H16: =ETAPAS!$F$22 -> 0.1 | I16: =ETAPAS!$F$23 -> 0.05 | J16: =ETAPAS!$F$24 -> 0.1 | K16: =ETAPAS!$F$25 -> 0.15 | L16: =ETAPAS!$F$26 -> 0.2 | M16: =ETAPAS!$F$27 -> 0.15 | AL16: =SUM(D16:AK16) -> 1 | AU16: 30 | AV16: 5 | AW16: =AU16/AV16 -> 6
D17: =D16+E16+F16+G16 -> 0.25 | H17: =H16+I16+J16+K16+L16+M16 -> 0.75
D18: =D15+E15+F15+G15 -> 85199.74764 | H18: =H15+I15+J15+K15+L15+M15 -> 255599.2429 | N18: =N15 -> 0
A19: 1.2 | B19: RPSB / WBS 2105 - RESERVATÓRIO BRAÚNAS | C19: Grande | D19: Etapa1 | E19: Etapa 2 | F19: Etapa 3 | G19: Etapa 4 | H19: Etapa5 | I19: Etapa6 | J19: Etapa7 | N19: Etapa8 | O19: Etapa9 | P19: Etapa10
D20: =D21*ETAPAS!$V$36 -> 20447.93943 | E20: =E21*ETAPAS!$V$36 -> 47711.85868 | F20: =F21*ETAPAS!$V$36 -> 68159.79811 | G20: =G21*ETAPAS!$V$36 -> 34079.89905 | H20: =H21*ETAPAS!$V$36 -> 68159.79811 | I20: =I21*ETAPAS!$V$36 -> 34079.89905 | J20: =J21*ETAPAS!$V$36 -> 68159.79811 | N20: =N21*ETAPAS!$V$36 -> 102239.6972 | O20: =O21*ETAPAS!$V$36 -> 136319.5962 | P20: =P21*ETAPAS!$V$36 -> 102239.6972 | AL20: =SUM(D20:AK20) -> 681597.9811 | AO20: 60 | AP20: =AO20/5 -> 12 | AQ20: =AP20/2 -> 6 | AR20: Grande
D21: =ETAPAS!$F$18 -> 0.03 | E21: =ETAPAS!$F$19 -> 0.07 | F21: =ETAPAS!$F$20 -> 0.1 | G21: =ETAPAS!$F$21 -> 0.05 | H21: =ETAPAS!$F$22 -> 0.1 | I21: =ETAPAS!$F$23 -> 0.05 | J21: =ETAPAS!$F$24 -> 0.1 | N21: =ETAPAS!$F$25 -> 0.15 | O21: =ETAPAS!$F$26 -> 0.2 | P21: =ETAPAS!$F$27 -> 0.15 | AL21: =SUM(D21:AK21) -> 1
D22: =D21+E21+F21+G21 -> 0.25 | H22: =H21+I21+J21+K21+L21+M21 -> 0.25 | N22: =N21+O21+P21 -> 0.5
D23: =D20+E20+F20+G20 -> 170399.4953 | H23: =H20+I20+J20+K20+L20+M20 -> 170399.4953 | N23: =N20+O20+P20+Q20+R20+S20 -> 340798.9905
A24: 1.3 | B24: RPSB / WBS 2106 - RESERVATÓRIO MANDANTES | C24: Médio | D24: Etapa1 | E24: Etapa 2 | F24: Etapa 3 | G24: Etapa 4 | H24: Etapa5 | I24: Etapa6 | J24: Etapa7 | K24: Etapa8 | L24: Etapa9 | M24: Etapa10
D25: =D26*ETAPAS!$V$39 -> 10223.96972 | E25: =E26*ETAPAS!$V$39 -> 23855.92934 | F25: =F26*ETAPAS!$V$39 -> 34079.89905 | G25: =G26*ETAPAS!$V$39 -> 17039.94953 | H25: =H26*ETAPAS!$V$39 -> 34079.89905 | I25: =I26*ETAPAS!$V$39 -> 17039.94953 | J25: =J26*ETAPAS!$V$39 -> 34079.89905 | K25: =K26*ETAPAS!$V$39 -> 51119.84858 | L25: =L26*ETAPAS!$V$39 -> 68159.79811 | M25: =M26*ETAPAS!$V$39 -> 51119.84858 | AL25: =SUM(D25:AK25) -> 340798.9905 | AO25: 30 | AP25: =AO25/5 -> 6 | AQ25: =AP25/2 -> 3 | AR25: Médio
D26: =ETAPAS!$F$18 -> 0.03 | E26: =ETAPAS!$F$19 -> 0.07 | F26: =ETAPAS!$F$20 -> 0.1 | G26: =ETAPAS!$F$21 -> 0.05 | H26: =ETAPAS!$F$22 -> 0.1 | I26: =ETAPAS!$F$23 -> 0.05 | J26: =ETAPAS!$F$24 -> 0.1 | K26: =ETAPAS!$F$25 -> 0.15 | L26: =ETAPAS!$F$26 -> 0.2 | M26: =ETAPAS!$F$27 -> 0.15 | AL26: =SUM(D26:AK26) -> 1
D27: =D26+E26+F26+G26 -> 0.25 | H27: =H26+I26+J26+K26+L26+M26 -> 0.75
D28: =D25+E25+F25+G25 -> 85199.74764 | H28: =H25+I25+J25+K25+L25+M25 -> 255599.2429 | N28: =N25 -> 0
A29: 1.4 | B29: RPSB / WBS 2107 - RESERVATÓRIO SALGUEIRO | C29: Médio | H29: Etapa1 | I29: Etapa 2 | J29: Etapa 3 | K29: Etapa 4 | N29: Etapa5 | O29: Etapa6 | P29: Etapa7 | Q29: Etapa8 | R29: Etapa9 | S29: Etapa10 | AO29: 30 | AP29: =AO29/5 -> 6 | AQ29: =AP29/2 -> 3 | AR29: Médio
H30: =H31*ETAPAS!$V$42 -> 10223.96972 | I30: =I31*ETAPAS!$V$42 -> 23855.92934 | J30: =J31*ETAPAS!$V$42 -> 34079.89905 | K30: =K31*ETAPAS!$V$42 -> 17039.94953 | N30: =N31*ETAPAS!$V$42 -> 34079.89905 | O30: =O31*ETAPAS!$V$42 -> 17039.94953 | P30: =P31*ETAPAS!$V$42 -> 34079.89905 | Q30: =Q31*ETAPAS!$V$42 -> 51119.84858 | R30: =R31*ETAPAS!$V$42 -> 68159.79811 | S30: =S31*ETAPAS!$V$42 -> 51119.84858 | AL30: =SUM(D30:AK30) -> 340798.9905
H31: =ETAPAS!$F$18 -> 0.03 | I31: =ETAPAS!$F$19 -> 0.07 | J31: =ETAPAS!$F$20 -> 0.1 | K31: =ETAPAS!$F$21 -> 0.05 | N31: =ETAPAS!$F$22 -> 0.1 | O31: =ETAPAS!$F$23 -> 0.05 | P31: =ETAPAS!$F$24 -> 0.1 | Q31: =ETAPAS!$F$25 -> 0.15 | R31: =ETAPAS!$F$26 -> 0.2 | S31: =ETAPAS!$F$27 -> 0.15 | AL31: =SUM(D31:AK31) -> 1
H32: =H31+I31+J31+K31 -> 0.25 | N32: =N31+O31+P31+Q31+R31+S31 -> 0.75
H33: =H30+I30+J30+K30+L30+M30 -> 85199.74764 | N33: =N30+O30+P30+Q30+R30+S30 -> 255599.2429
A34: 1.5 | B34: RPSB / WBS 2108 - RESERVATÓRIO MÚQUEM | C34: Médio | H34: Etapa1 | I34: Etapa 2 | J34: Etapa 3 | K34: Etapa 4 | N34: Etapa5 | O34: Etapa6 | P34: Etapa7 | Q34: Etapa8 | R34: Etapa9 | S34: Etapa10 | AO34: 30 | AP34: =AO34/5 -> 6 | AQ34: =AP34/2 -> 3 | AR34: Médio
H35: =H36*ETAPAS!$V$45 -> 10223.96972 | I35: =I36*ETAPAS!$V$45 -> 23855.92934 | J35: =J36*ETAPAS!$V$45 -> 34079.89905 | K35: =K36*ETAPAS!$V$45 -> 17039.94953 | N35: =N36*ETAPAS!$V$45 -> 34079.89905 | O35: =O36*ETAPAS!$V$45 -> 17039.94953 | P35: =P36*ETAPAS!$V$45 -> 34079.89905 | Q35: =Q36*ETAPAS!$V$45 -> 51119.84858 | R35: =R36*ETAPAS!$V$45 -> 68159.79811 | S35: =S36*ETAPAS!$V$45 -> 51119.84858 | AL35: =SUM(D35:AK35) -> 340798.9905
H36: =ETAPAS!$F$18 -> 0.03 | I36: =ETAPAS!$F$19 -> 0.07 | J36: =ETAPAS!$F$20 -> 0.1 | K36: =ETAPAS!$F$21 -> 0.05 | N36: =ETAPAS!$F$22 -> 0.1 | O36: =ETAPAS!$F$23 -> 0.05 | P36: =ETAPAS!$F$24 -> 0.1 | Q36: =ETAPAS!$F$25 -> 0.15 | R36: =ETAPAS!$F$26 -> 0.2 | S36: =ETAPAS!$F$27 -> 0.15 | AL36: =SUM(D36:AK36) -> 1
H37: =H36+I36+J36+K36 -> 0.25 | N37: =N36+O36+P36+Q36+R36+S36 -> 0.75
H38: =H35+I35+J35+K35+L35+M35 -> 85199.74764 | N38: =N35+O35+P35+Q35+R35+S35 -> 255599.2429
A39: 1.6 | B39: RPSB / WBS 2109 - RESERVATÓRIO CACIMBA NOVA | C39: Pequeno | D39: Etapa1 | E39: Etapa 2 | F39: Etapa 3 | G39: Etapa 4 | H39: Etapa5 | I39: Etapa6 | J39: Etapa7 | K39: Etapa8 | L39: Etapa9 | M39: Etapa10 | AO39: 20 | AP39: =AO39/5 -> 4 | AQ39: =AP39/2 -> 2 | AR39: Pequeno
D40: =D41*ETAPAS!$V$48 -> 6815.979811 | E40: =E41*ETAPAS!$V$48 -> 15903.95289 | F40: =F41*ETAPAS!$V$48 -> 22719.9327 | G40: =G41*ETAPAS!$V$48 -> 11359.96635 | H40: =H41*ETAPAS!$V$48 -> 22719.9327 | I40: =I41*ETAPAS!$V$48 -> 11359.96635 | J40: =J41*ETAPAS!$V$48 -> 22719.9327 | K40: =K41*ETAPAS!$V$48 -> 34079.89905 | L40: =L41*ETAPAS!$V$48 -> 45439.86541 | M40: =M41*ETAPAS!$V$48 -> 34079.89905 | AL40: =SUM(D40:AK40) -> 227199.327
D41: =ETAPAS!$F$18 -> 0.03 | E41: =ETAPAS!$F$19 -> 0.07 | F41: =ETAPAS!$F$20 -> 0.1 | G41: =ETAPAS!$F$21 -> 0.05 | H41: =ETAPAS!$F$22 -> 0.1 | I41: =ETAPAS!$F$23 -> 0.05 | J41: =ETAPAS!$F$24 -> 0.1 | K41: =ETAPAS!$F$25 -> 0.15 | L41: =ETAPAS!$F$26 -> 0.2 | M41: =ETAPAS!$F$27 -> 0.15 | AL41: =SUM(D41:AK41) -> 1
D42: =D41+E41+F41+G41 -> 0.25 | H42: =H41+I41+J41+K41+L41+M41 -> 0.75
D43: =D40+E40+F40+G40 -> 56799.83176 | H43: =H40+I40+J40+K40+L40+M40 -> 170399.4953
A44: 1.7 | B44: RPSB / WBS 2110 - RESERVATÓRIO BAGRES E DIQUE BAGRES | C44: Pequeno | N44: Etapa1 | O44: Etapa 2 | P44: Etapa 3 | Q44: Etapa 4 | T44: Etapa5 | U44: Etapa6 | V44: Etapa7 | W44: Etapa8 | X44: Etapa9 | Y44: Etapa10 | AO44: 20 | AP44: =AO44/5 -> 4 | AQ44: =AP44/2 -> 2 | AR44: Pequeno
N45: =N46*ETAPAS!$V$51 -> 6815.979811 | O45: =O46*ETAPAS!$V$51 -> 15903.95289 | P45: =P46*ETAPAS!$V$51 -> 22719.9327 | Q45: =Q46*ETAPAS!$V$51 -> 11359.96635 | T45: =T46*ETAPAS!$V$51 -> 22719.9327 | U45: =U46*ETAPAS!$V$51 -> 11359.96635 | V45: =V46*ETAPAS!$V$51 -> 22719.9327 | W45: =W46*ETAPAS!$V$51 -> 34079.89905 | X45: =X46*ETAPAS!$V$51 -> 45439.86541 | Y45: =Y46*ETAPAS!$V$51 -> 34079.89905 | AL45: =SUM(D45:AK45) -> 227199.327
N46: =ETAPAS!$F$18 -> 0.03 | O46: =ETAPAS!$F$19 -> 0.07 | P46: =ETAPAS!$F$20 -> 0.1 | Q46: =ETAPAS!$F$21 -> 0.05 | T46: =ETAPAS!$F$22 -> 0.1 | U46: =ETAPAS!$F$23 -> 0.05 | V46: =ETAPAS!$F$24 -> 0.1 | W46: =ETAPAS!$F$25 -> 0.15 | X46: =ETAPAS!$F$26 -> 0.2 | Y46: =ETAPAS!$F$27 -> 0.15 | AL46: =SUM(D46:AK46) -> 1
N47: =N46+O46+P46+Q46 -> 0.25 | T47: =T46+U46+V46+W46+X46+Y46 -> 0.75
N48: =N45+O45+P45+Q45+R45+S45 -> 56799.83176 | T48: =T45+U45+V45+W45+X45+Y45 -> 170399.4953
A49: 1.8 | B49: RPSB / WBS 2111 - RESERVATÓRIO COPITÍ | C49: Médio | N49: Etapa1 | O49: Etapa 2 | P49: Etapa 3 | Q49: Etapa 4 | T49: Etapa5 | U49: Etapa6 | V49: Etapa7 | W49: Etapa8 | X49: Etapa9 | Y49: Etapa10 | AO49: 30 | AP49: =AO49/5 -> 6 | AQ49: =AP49/2 -> 3 | AR49: Médio
N50: =N51*ETAPAS!$V$54 -> 10223.96972 | O50: =O51*ETAPAS!$V$54 -> 23855.92934 | P50: =P51*ETAPAS!$V$54 -> 34079.89905 | Q50: =Q51*ETAPAS!$V$54 -> 17039.94953 | T50: =T51*ETAPAS!$V$54 -> 34079.89905 | U50: =U51*ETAPAS!$V$54 -> 17039.94953 | V50: =V51*ETAPAS!$V$54 -> 34079.89905 | W50: =W51*ETAPAS!$V$54 -> 51119.84858 | X50: =X51*ETAPAS!$V$54 -> 68159.79811 | Y50: =Y51*ETAPAS!$V$54 -> 51119.84858 | AL50: =SUM(D50:AK50) -> 340798.9905
N51: =ETAPAS!$F$18 -> 0.03 | O51: =ETAPAS!$F$19 -> 0.07 | P51: =ETAPAS!$F$20 -> 0.1 | Q51: =ETAPAS!$F$21 -> 0.05 | T51: =ETAPAS!$F$22 -> 0.1 | U51: =ETAPAS!$F$23 -> 0.05 | V51: =ETAPAS!$F$24 -> 0.1 | W51: =ETAPAS!$F$25 -> 0.15 | X51: =ETAPAS!$F$26 -> 0.2 | Y51: =ETAPAS!$F$27 -> 0.15 | AL51: =SUM(D51:AK51) -> 1
N52: =N51+O51+P51+Q51 -> 0.25 | T52: =T51+U51+V51+W51+X51+Y51 -> 0.75
N53: =N50+O50+P50+Q50+R50+S50 -> 85199.74764 | T53: =T50+U50+V50+W50+X50+Y50 -> 255599.2429
A54: 1.9 | B54: RPSB / WBS 2112 - RESERVATÓRIO MOXOTÓ | C54: Pequeno | T54: Etapa1 | U54: Etapa 2 | V54: Etapa 3 | W54: Etapa 4 | Z54: Etapa5 | AA54: Etapa6 | AB54: Etapa7 | AC54: Etapa8 | AD54: Etapa9 | AE54: Etapa10 | AO54: 20 | AP54: =AO54/5 -> 4 | AQ54: =AP54/2 -> 2 | AR54: Pequeno
T55: =T56*ETAPAS!$V$57 -> 6815.979811 | U55: =U56*ETAPAS!$V$57 -> 15903.95289 | V55: =V56*ETAPAS!$V$57 -> 22719.9327 | W55: =W56*ETAPAS!$V$57 -> 11359.96635 | Z55: =Z56*ETAPAS!$V$57 -> 22719.9327 | AA55: =AA56*ETAPAS!$V$57 -> 11359.96635 | AB55: =AB56*ETAPAS!$V$57 -> 22719.9327 | AC55: =AC56*ETAPAS!$V$57 -> 34079.89905 | AD55: =AD56*ETAPAS!$V$57 -> 45439.86541 | AE55: =AE56*ETAPAS!$V$57 -> 34079.89905 | AL55: =SUM(D55:AK55) -> 227199.327
T56: =ETAPAS!$F$18 -> 0.03 | U56: =ETAPAS!$F$19 -> 0.07 | V56: =ETAPAS!$F$20 -> 0.1 | W56: =ETAPAS!$F$21 -> 0.05 | Z56: =ETAPAS!$F$22 -> 0.1 | AA56: =ETAPAS!$F$23 -> 0.05 | AB56: =ETAPAS!$F$24 -> 0.1 | AC56: =ETAPAS!$F$25 -> 0.15 | AD56: =ETAPAS!$F$26 -> 0.2 | AE56: =ETAPAS!$F$27 -> 0.15 | AL56: =SUM(D56:AK56) -> 1
T57: =T56+U56+V56+W56 -> 0.25 | Z57: =Z56+AA56+AB56+AC56+AD56+AE56 -> 0.75
T58: =T55+U55+V55+W55+X55+Y55 -> 56799.83176 | Z58: =Z55+AA55+AB55+AC55+AD55+AE55 -> 170399.4953
A59: 1.10 | B59: RPSB / WBS 2113 - RESERVATÓRIO BARREIRO | C59: Pequeno | T59: Etapa1 | U59: Etapa 2 | V59: Etapa 3 | W59: Etapa 4 | Z59: Etapa5 | AA59: Etapa6 | AB59: Etapa7 | AC59: Etapa8 | AD59: Etapa9 | AE59: Etapa10 | AO59: 20 | AP59: =AO59/5 -> 4 | AQ59: =AP59/2 -> 2 | AR59: Pequeno
T60: =T61*ETAPAS!$V$60 -> 6815.979811 | U60: =U61*ETAPAS!$V$60 -> 15903.95289 | V60: =V61*ETAPAS!$V$60 -> 22719.9327 | W60: =W61*ETAPAS!$V$60 -> 11359.96635 | Z60: =Z61*ETAPAS!$V$60 -> 22719.9327 | AA60: =AA61*ETAPAS!$V$60 -> 11359.96635 | AB60: =AB61*ETAPAS!$V$60 -> 22719.9327 | AC60: =AC61*ETAPAS!$V$60 -> 34079.89905 | AD60: =AD61*ETAPAS!$V$60 -> 45439.86541 | AE60: =AE61*ETAPAS!$V$60 -> 34079.89905 | AL60: =SUM(D60:AK60) -> 227199.327
T61: =ETAPAS!$F$18 -> 0.03 | U61: =ETAPAS!$F$19 -> 0.07 | V61: =ETAPAS!$F$20 -> 0.1 | W61: =ETAPAS!$F$21 -> 0.05 | Z61: =ETAPAS!$F$22 -> 0.1 | AA61: =ETAPAS!$F$23 -> 0.05 | AB61: =ETAPAS!$F$24 -> 0.1 | AC61: =ETAPAS!$F$25 -> 0.15 | AD61: =ETAPAS!$F$26 -> 0.2 | AE61: =ETAPAS!$F$27 -> 0.15 | AL61: =SUM(D61:AK61) -> 1
T62: =T61+U61+V61+W61 -> 0.25 | Z62: =Z61+AA61+AB61+AC61+AD61+AE61 -> 0.75
T63: =T60+U60+V60+W60+X60+Y60 -> 56799.83176 | Z63: =Z60+AA60+AB60+AC60+AD60+AE60 -> 170399.4953
A64: 1.11 | B64: RPSB / WBS 2114 - RESERVATÓRIO CAMPOS | C64: Médio | Z64: Etapa1 | AA64: Etapa 2 | AB64: Etapa 3 | AC64: Etapa 4 | AF64: Etapa5 | AG64: Etapa6 | AH64: Etapa7 | AI64: Etapa8 | AJ64: Etapa9 | AK64: Etapa10 | AO64: 30 | AP64: =AO64/5 -> 6 | AQ64: =AP64/2 -> 3 | AR64: Médio
Z65: =Z66*ETAPAS!$V$63 -> 10223.96972 | AA65: =AA66*ETAPAS!$V$63 -> 23855.92934 | AB65: =AB66*ETAPAS!$V$63 -> 34079.89905 | AC65: =AC66*ETAPAS!$V$63 -> 17039.94953 | AF65: =AF66*ETAPAS!$V$63 -> 34079.89905 | AG65: =AG66*ETAPAS!$V$63 -> 17039.94953 | AH65: =AH66*ETAPAS!$V$63 -> 34079.89905 | AI65: =AI66*ETAPAS!$V$63 -> 51119.84858 | AJ65: =AJ66*ETAPAS!$V$63 -> 68159.79811 | AK65: =AK66*ETAPAS!$V$63 -> 51119.84858 | AL65: =SUM(D65:AK65) -> 340798.9905
Z66: =ETAPAS!$F$18 -> 0.03 | AA66: =ETAPAS!$F$19 -> 0.07 | AB66: =ETAPAS!$F$20 -> 0.1 | AC66: =ETAPAS!$F$21 -> 0.05 | AF66: =ETAPAS!$F$22 -> 0.1 | AG66: =ETAPAS!$F$23 -> 0.05 | AH66: =ETAPAS!$F$24 -> 0.1 | AI66: =ETAPAS!$F$25 -> 0.15 | AJ66: =ETAPAS!$F$26 -> 0.2 | AK66: =ETAPAS!$F$27 -> 0.15 | AL66: =SUM(D66:AK66) -> 1
Z67: =Z66+AA66+AB66+AC66+AD66+AE66 -> 0.25 | AF67: =AF66+AG66+AH66+AI66+AJ66+AK66 -> 0.75
Z68: =Z65+AA65+AB65+AC65+AD65+AE65 -> 85199.74764 | AF68: =AF65+AG65+AH65+AI65+AJ65+AK65 -> 255599.2429
A69: 1.12 | B69: RPSB / WBS 2115 - RESERVATÓRIO BARRO BRANCO | C69: Pequeno | Z69: Etapa1 | AA69: Etapa 2 | AB69: Etapa 3 | AC69: Etapa 4 | AF69: Etapa5 | AG69: Etapa6 | AH69: Etapa7 | AI69: Etapa8 | AJ69: Etapa9 | AK69: Etapa10 | AO69: 20 | AP69: =AO69/5 -> 4 | AQ69: =AP69/2 -> 2 | AR69: Pequeno
Z70: =Z71*ETAPAS!$V$66 -> 6815.979811 | AA70: =AA71*ETAPAS!$V$66 -> 15903.95289 | AB70: =AB71*ETAPAS!$V$66 -> 22719.9327 | AC70: =AC71*ETAPAS!$V$66 -> 11359.96635 | AF70: =AF71*ETAPAS!$V$66 -> 22719.9327 | AG70: =AG71*ETAPAS!$V$66 -> 11359.96635 | AH70: =AH71*ETAPAS!$V$66 -> 22719.9327 | AI70: =AI71*ETAPAS!$V$66 -> 34079.89905 | AJ70: =AJ71*ETAPAS!$V$66 -> 45439.86541 | AK70: =AK71*ETAPAS!$V$66 -> 34079.89905 | AL70: =SUM(D70:AK70) -> 227199.327
Z71: =ETAPAS!$F$18 -> 0.03 | AA71: =ETAPAS!$F$19 -> 0.07 | AB71: =ETAPAS!$F$20 -> 0.1 | AC71: =ETAPAS!$F$21 -> 0.05 | AF71: =ETAPAS!$F$22 -> 0.1 | AG71: =ETAPAS!$F$23 -> 0.05 | AH71: =ETAPAS!$F$24 -> 0.1 | AI71: =ETAPAS!$F$25 -> 0.15 | AJ71: =ETAPAS!$F$26 -> 0.2 | AK71: =ETAPAS!$F$27 -> 0.15 | AL71: =SUM(D71:AK71) -> 1
Z72: =Z71+AA71+AB71+AC71+AF71+AG71 -> 0.4 | AF72: =AH71+AI71+AJ71+AK71 -> 0.6
Z73: =Z70+AA70+AB70+AC70+AF70+AG70 -> 90879.73081 | AF73: =AH70+AI70+AJ70+AK70 -> 136319.5962
A74: 1.13 | B74: MONITORAMENTO E CONTROLE DE ESTABILIDADE DE BARRAGEM INTEGRADO AOS PROCEDIMENTOS EMERGENCIAIS - ( PAE ) | C74: P/M/G | H74: =H75*ETAPAS!$V$69 -> 68159.79811 | N74: =N75*ETAPAS!$V$69 -> 136319.5962 | T74: =T75*ETAPAS!$V$69 -> 136319.5962 | AL74: =SUM(D74:AK74) -> 340798.9905 | AO74: 30 | AP74: =AO74/5 -> 6 | AQ74: =AP74/2 -> 3
H75: 0.2 | N75: 0.4 | T75: 0.4 | AL75: =SUM(D75:AK75) -> 1
H76: =H74 -> 68159.79811 | N76: =N74 -> 136319.5962 | T76: =T74 -> 136319.5962
AO77: =SUM(AO15:AO74) -> 370 | AP77: =SUM(AP15:AP74) -> 74 | AQ77: =SUM(AQ15:AQ74) -> 37
A78: 2 | B78: TOTAL GERAL | D78: =D12 -> 397598.8223 | H78: =H12 -> 1090556.77 | N78: =N12 -> 1130316.652 | T78: =T12 -> 675917.9979 | Z78: =Z12 -> 516878.469 | AF78: =AF12 -> 391918.8391 | AL78: =SUM(D78:AK78) -> 4203187.55 | AN78: =FCON!H42 -> 4203187.55 | AO78: =$AN$78/AO77 -> 11359.96635 | AP78: =$AN$78/AP77 -> 56799.83176 | AQ78: =$AN$78/AQ77 -> 113599.6635
D79: =D78/$AL78 -> 0.09459459459 | H79: =H78/$AL78 -> 0.2594594595 | N79: =N78/$AL78 -> 0.2689189189 | T79: =T78/$AL78 -> 0.1608108108 | Z79: =Z78/$AL78 -> 0.122972973 | AF79: =AF78/$AL78 -> 0.09324324324 | AL79: =SUM(D79:AK79) -> 1
A81: 3 | B81: TOTAL ACUMULADO | D81: =SUM($D$78:D78) -> 397598.8223 | H81: =SUM($D$78:H78) -> 1488155.592 | N81: =SUM($D$78:N78) -> 2618472.244 | T81: =SUM($D$78:T78) -> 3294390.242 | Z81: =SUM($D$78:Z78) -> 3811268.711 | AF81: =SUM($D$78:AF78) -> 4203187.55 | AL81: =AF81 -> 4203187.55 | AO81: =AO77*AO78 -> 4203187.55 | AP81: =AP77*AP78 -> 4203187.55 | AQ81: 4203187.55
D82: =SUM($D$79:D79) -> 0.09459459459 | H82: =SUM($D$79:H79) -> 0.3540540541 | N82: =SUM($D$79:N79) -> 0.622972973 | T82: =SUM($D$79:T79) -> 0.7837837838 | Z82: =SUM($D$79:Z79) -> 0.9067567568 | AF82: =SUM($D$79:AF79) -> 1 | AL82: =AF82 -> 1
AL83: =FCON!H42 -> 4203187.55

Sheet ETAPAS
B12: ETAPAS:
F17: %
B18: Etapa 1 | F18: 0.03 | G18: Etapa 1 – Diagnóstico e Análise da Documentação e dos Dados Existentes;
B19: Etapa 2 | F19: 0.07 | G19: Etapa 2 – Elaboração de Inspeção Especial com apresentação do devido Relatório;
B20: Etapa 3 | F20: 0.1 | G20: Etapa 3 – Elaboração dos estudos hidráulicos e hidrológicos;
B21: Etapa 4 | F21: 0.05 | G21: Etapa 4 – Reanálise do PAE;
B22: Etapa 5 | F22: 0.1 | G22: Etapa 5 – Elaboração dos estudos geológicos-geotécnicos;
B23: Etapa 6 | F23: 0.05 | G23: Etapa 6 – Elaboração dos estudos das estruturas de concreto e estruturas hidromecânicas;
B24: Etapa 7 | F24: 0.1 | G24: Etapa 7 – Revisão do Plano de Operação e Manutenção;
B25: Etapa8 | F25: 0.15 | G25: Etapa 8 – Relatório dos dados de instrumentação com treinamento para a equipe da Codevasf para interpretação das leituras, assim como identificação de eventual falha na instrumentação existente;
B26: Etapa9 | F26: 0.2 | G26: Etapa 9 – Relatório Final do RPSB;
B27: Etapa10 | F27: 0.15 | G27: Etapa 10 – Resumo Executivo do RPSB
B30: 1 | C30: PRODUTO / BARRAGEM | T30: PORTE | U30: Duração mínima necessária | V30: R$/BARRAGEM
U31: quinzena
B33: 1.1 | C33: RPSB / WBS 2104 - RESERVATÓRIO AREIAS | T33: Médio | U33: 3 | V33: =U33*$U$72 -> 340798.9905
B36: 1.2 | C36: RPSB / WBS 2105 - RESERVATÓRIO BRAÚNAS | T36: Grande | U36: 6 | V36: =U36*$U$72 -> 681597.9811
B39: 1.3 | C39: RPSB / WBS 2106 - RESERVATÓRIO MANDANTES | T39: Médio | U39: 3 | V39: =U39*$U$72 -> 340798.9905
B42: 1.4 | C42: RPSB / WBS 2107 - RESERVATÓRIO SALGUEIRO | T42: Médio | U42: 3 | V42: =U42*$U$72 -> 340798.9905
B45: 1.5 | C45: RPSB / WBS 2108 - RESERVATÓRIO MÚQUEM | T45: Médio | U45: 3 | V45: =U45*$U$72 -> 340798.9905
B48: 1.6 | C48: RPSB / WBS 2109 - RESERVATÓRIO CACIMBA NOVA | T48: Pequeno | U48: 2 | V48: =U48*$U$72 -> 227199.327
B51: 1.7 | C51: RPSB / WBS 2110 - RESERVATÓRIO BAGRES E DIQUE BAGRES | T51: Pequeno | U51: 2 | V51: =U51*$U$72 -> 227199.327
B54: 1.8 | C54: RPSB / WBS 2111 - RESERVATÓRIO COPITÍ | T54: Médio | U54: 3 | V54: =U54*$U$72 -> 340798.9905
B57: 1.9 | C57: RPSB / WBS 2112 - RESERVATÓRIO MOXOTÓ | T57: Pequeno | U57: 2 | V57: =U57*$U$72 -> 227199.327
B60: 1.10 | C60: RPSB / WBS 2113 - RESERVATÓRIO BARREIRO | T60: Pequeno | U60: 2 | V60: =U60*$U$72 -> 227199.327
B63: 1.11 | C63: RPSB / WBS 2114 - RESERVATÓRIO CAMPOS | T63: Médio | U63: 3 | V63: =U63*$U$72 -> 340798.9905
B66: 1.12 | C66: RPSB / WBS 2115 - RESERVATÓRIO BARRO BRANCO | T66: Pequeno | U66: 2 | V66: =U66*$U$72 -> 227199.327
B69: 1.13 | C69: MONITORAMENTO E CONTROLE DE ESTABILIDADE DE BARRAGEM INTEGRADO AOS PROCEDIMENTOS EMERGENCIAIS - ( PAE ) | T69: P/M/G | U69: 3 | V69: =U69*$U$72 -> 340798.9905
U71: =SUM(U33:U70) -> 37 | V71: =SUM(V33:V69) -> 4203187.55
U72: =U74/ETAPAS!U71 -> 113599.6635
U74: =FCON!H42 -> 4203187.55

Sheet FCON
A1: ' | H1: CODIGO:
H2: FCON
A3: NOME DA CONSULTORA:
A5: PROJETO: | D5: PRODUTO: | H5: EDITAL:
A6: SERVIÇOS ESPECIALIZADOS PARA ELABORAÇÃO DOS RELATÓRIOS DE REVISÃO PERIÓDICA DE SEGURANÇA DE BARRAGEM (RPSB) DO EIXO LESTE - PISF
A7: Cod. | B7: Categoria / Insumo | C7: Uni | D7: Qde | E7: CUD | F7: PU | G7: FatorK | H7: CT | I7: PT | L7: CODEVASF
A8: MO | B8: Mão de Obra | H8: =SUBTOTAL(9,H9:H22) -> 1585733.1 | I8: =SUBTOTAL(9,I9:I22) -> 3569525.52 | L8: CATEGORIA | M8: SAL. MENSAL
A9: P0 | B9: Coordenador Geral | C9: mês | D9: =SUMIF(FCON1_Qde!$B$12:$B$33,"="&FCON!$B9,FCON1_Qde!$D$12:$D$33) -> 6 | E9: =INDEX('SALÁRIOS CONSULTORIA'!D:D,MATCH(A9,'SALÁRIOS CONSULTORIA'!A:A,0)) -> 16922.67 | F9: =ROUND(E9*G9,2) -> 37416.02 | G9: =FCON2_FatorK1!$E$37 -> 2.211 | H9: =ROUND(D9*E9,2) -> 101536.02 | I9: =ROUND(F9*D9,2) -> 224496.12 | L9: =A9 -> P0 | M9: 16889.91 | O9: =E9=M9 -> FALSE
A10: P1 | B10: Engenheiro Hidráulico | C10: mês | D10: =SUMIF(FCON1_Qde!$B$12:$B$33,"="&FCON!$B10,FCON1_Qde!$D$12:$D$33) -> 18 | E10: =INDEX('SALÁRIOS CONSULTORIA'!D:D,MATCH(A10,'SALÁRIOS CONSULTORIA'!A:A,0)) -> 11127.03 | F10: =ROUND(E10*G10,2) -> 24870.02 | G10: =FCON2_FatorK1!$E$38 -> 2.2351 | H10: =ROUND(D10*E10,2) -> 200286.54 | I10: =ROUND(F10*D10,2) -> 447660.36 | L10: =A10 -> P1 | M10: 10987.76 | O10: =E10=M10 -> FALSE
A11: P1 | B11: Engenheiro Hidrólogo | C11: mês | D11: =SUMIF(FCON1_Qde!$B$12:$B$33,"="&FCON!$B11,FCON1_Qde!$D$12:$D$33) -> 18 | E11: =INDEX('SALÁRIOS CONSULTORIA'!D:D,MATCH(A11,'SALÁRIOS CONSULTORIA'!A:A,0)) -> 11127.03 | F11: 24870.02 | G11: =FCON2_FatorK1!$E$38 -> 2.2351 | H11: 200286.54 | I11: 447660.36 | L11: P1 | M11: 10987.76 | O11: FALSE
A12: P1 | B12: Engenheiro Geotécnico | C12: mês | D12: =SUMIF(FCON1_Qde!$B$12:$B$33,"="&FCON!$B12,FCON1_Qde!$D$12:$D$33) -> 18 | E12: =INDEX('SALÁRIOS CONSULTORIA'!D:D,MATCH(A12,'SALÁRIOS CONSULTORIA'!A:A,0)) -> 11127.03 | F12: 24870.02 | G12: =FCON2_FatorK1!$E$38 -> 2.2351 | H12: 200286.54 | I12: 447660.36 | L12: P1 | M12: 10987.76 | O12: FALSE
A13: P1 | B13: Engenheiro Estrutural | C13: mês | D13: =SUMIF(FCON1_Qde!$B$12:$B$33,"="&FCON!$B13,FCON1_Qde!$D$12:$D$33) -> 18 | E13: =INDEX('SALÁRIOS CONSULTORIA'!D:D,MATCH(A13,'SALÁRIOS CONSULTORIA'!A:A,0)) -> 11127.03 | F13: 24870.02 | G13: =FCON2_FatorK1!$E$38 -> 2.2351 | H13: 200286.54 | I13: 447660.36 | L13: P1 | M13: 10987.76 | O13: FALSE
A14: P1 | B14: Engenheiro Mecânico | C14: mês | D14: =SUMIF(FCON1_Qde!$B$12:$B$33,"="&FCON!$B14,FCON1_Qde!$D$12:$D$33) -> 18 | E14: =INDEX('SALÁRIOS CONSULTORIA'!D:D,MATCH(A14,'SALÁRIOS CONSULTORIA'!A:A,0)) -> 11127.03 | F14: 24870.02 | G14: =FCON2_FatorK1!$E$38 -> 2.2351 | H14: 200286.54 | I14: 447660.36 | L14: P1 | M14: 10987.76 | O14: FALSE
A15: P1 | B15: Engenheiro Eletricista | C15: mês | D15: =SUMIF(FCON1_Qde!$B$12:$B$33,"="&FCON!$B15,FCON1_Qde!$D$12:$D$33) -> 18 | E15: =INDEX('SALÁRIOS CONSULTORIA'!D:D,MATCH(A15,'SALÁRIOS CONSULTORIA'!A:A,0)) -> 11127.03 | F15: =ROUND(E15*G15,2) -> 24870.02 | G15: =FCON2_FatorK1!$E$38 -> 2.2351 | H15: =ROUND(D15*E15,2) -> 200286.54 | I15: =ROUND(F15*D15,2) -> 447660.36 | L15: P1 | M15: 10987.76 | O15: FALSE
A16: P1 | B16: Geólogo | C16: mês | D16: =SUMIF(FCON1_Qde!$B$12:$B$33,"="&FCON!$B16,FCON1_Qde!$D$12:$D$33) -> 18 | E16: =INDEX('SALÁRIOS CONSULTORIA'!D:D,MATCH(A16,'SALÁRIOS CONSULTORIA'!A:A,0)) -> 11127.03 | F16: 24870.02 | G16: =FCON2_FatorK1!$E$38 -> 2.2351 | H16: 200286.54 | I16: 447660.36 | L16: P1 | M16: 10987.76 | O16: FALSE
A17: T1 | B17: Técnico Cadista/Estruturas | C17: mês | D17: =SUMIF(FCON1_Qde!$B$12:$B$33,"="&FCON!$B17,FCON1_Qde!$D$12:$D$33) -> 6 | E17: =INDEX('SALÁRIOS CONSULTORIA'!D:D,MATCH(A17,'SALÁRIOS CONSULTORIA'!A:A,0)) -> 2558.31 | F17: 6333.86 | G17: =FCON2_FatorK1!$E$39 -> 2.4758 | H17: 15349.86 | I17: 38003.16 | L17: T1 | M17: 2474.6 | O17: FALSE
A18: T1 | B18: Técnico Geopro/Hidrologia | C18: mês | D18: =SUMIF(FCON1_Qde!$B$12:$B$33,"="&FCON!$B18,FCON1_Qde!$D$12:$D$33) -> 6 | E18: =INDEX('SALÁRIOS CONSULTORIA'!D:D,MATCH(A18,'SALÁRIOS CONSULTORIA'!A:A,0)) -> 2558.31 | F18: =ROUND(E18*G18,2) -> 6333.86 | G18: =FCON2_FatorK1!$E$39 -> 2.4758 | H18: =ROUND(D18*E18,2) -> 15349.86 | I18: =ROUND(F18*D18,2) -> 38003.16 | L18: T1 | M18: 2474.6 | O18: FALSE
A19: T1 | B19: Topógrafo | C19: mês | D19: =SUMIF(FCON1_Qde!$B$12:$B$33,"="&FCON!$B19,FCON1_Qde!$D$12:$D$33) -> 6 | E19: =INDEX('SALÁRIOS CONSULTORIA'!D:D,MATCH(A19,'SALÁRIOS CONSULTORIA'!A:A,0)) -> 2558.31 | F19: =ROUND(E19*G19,2) -> 6333.86 | G19: =FCON2_FatorK1!$E$39 -> 2.4758 | H19: =ROUND(D19*E19,2) -> 15349.86 | I19: =ROUND(F19*D19,2) -> 38003.16 | L19: T1 | M19: 2474.6 | O19: FALSE
A20: T3 | B20: Auxiliar de topografia | C20: mês | D20: =SUMIF(FCON1_Qde!$B$12:$B$33,"="&FCON!$B20,FCON1_Qde!$D$12:$D$33) -> 12 | E20: =INDEX('SALÁRIOS CONSULTORIA'!D:D,MATCH('SALÁRIOS CONSULTORIA'!A18,'SALÁRIOS CONSULTORIA'!A:A,0)) -> 1369.28 | F20: =ROUND(E20*G20,2) -> 3762.92 | G20: =FCON2_FatorK1!$E$40 -> 2.7481 | H20: =ROUND(D20*E20,2) -> 16431.36 | I20: =ROUND(F20*D20,2) -> 45155.04 | L20: T3 | M20: 1726.56 | O20: FALSE
A21: A1 | B21: Secretário | C21: mês | D21: =SUMIF(FCON1_Qde!$B$12:$B$33,"="&FCON!$B21,FCON1_Qde!$D$12:$D$33) -> 6 | E21: =INDEX('SALÁRIOS CONSULTORIA'!D:D,MATCH('SALÁRIOS CONSULTORIA'!A22,'SALÁRIOS CONSULTORIA'!A:A,0)) -> 1642.53 | F21: 4353.53 | G21: =FCON2_FatorK1!$E$41 -> 2.6505 | H21: 9855.18 | I21: 26121.18 | L21: A1 | M21: 1611.52 | O21: FALSE
A22: A1 | B22: Redator/Revisor/Editor | C22: mês | D22: =SUMIF(FCON1_Qde!$B$12:$B$33,"="&FCON!$B22,FCON1_Qde!$D$12:$D$33) -> 6 | E22: =INDEX('SALÁRIOS CONSULTORIA'!D:D,MATCH('SALÁRIOS CONSULTORIA'!A22,'SALÁRIOS CONSULTORIA'!A:A,0)) -> 1642.53 | F22: 4353.53 | G22: =FCON2_FatorK1!$E$41 -> 2.6505 | H22: 9855.18 | I22: 26121.18 | L22: A1 | M22: 1611.52 | O22: FALSE
A23: DP | B23: Diárias e Passagens | H23: =SUBTOTAL(9,H24:H26) -> 123893.1 | I23: =SUBTOTAL(9,I24:I26) -> 152872.5
A24: V0 | B24: Diárias | C24: dia | D24: =SUMIF(FCON1_Qde!$A$12:$A$33,"="&FCON!$A24,FCON1_Qde!$D$12:$D$33) -> 210 | E24: 385.45 | F24: 475.61 | G24: =FCON3_FatorK2345!$E$23 -> 1.2339 | H24: 80944.5 | I24: 99878.1 | M24: 385.45 | O24: TRUE
A25: V1 | B25: Aluguel veículo leve 1.6 c/ Motorista | C25: dia | D25: =SUMIF(FCON1_Qde!$A$12:$A$33,"="&FCON!$A25,FCON1_Qde!$D$12:$D$33) -> 60 | E25: 115.81 | F25: 142.9 | G25: =FCON3_FatorK2345!$E$23 -> 1.2339 | H25: 6948.6 | I25: 8574 | M25: =ROUND(#REF!/30,2) -> 
A26: V2 | B26: Passagens Aéreas (ida e volta) | C26: un | D26: =SUMIF(FCON1_Qde!$A$12:$A$33,"="&FCON!$A26,FCON1_Qde!$D$12:$D$33) -> 60 | E26: 600 | F26: 740.34 | G26: =FCON3_FatorK2345!$E$23 -> 1.2339 | H26: 36000 | I26: 44420.4 | M26: =#REF! -> 
A27: MC | B27: Materiais de Consumo | H27: =SUBTOTAL(9,H28:H31) -> 28863.99 | I27: =SUBTOTAL(9,I28:I31) -> 35614.85
A28: M1 | B28: Notebook | C28: un x mês | D28: =SUMIF(FCON1_Qde!$A$12:$A$33,"="&FCON!$A28,FCON1_Qde!$D$12:$D$33) -> 156 | E28: 170 | F28: 209.76 | G28: =FCON3_FatorK2345!$E$23 -> 1.2339 | H28: 26520 | I28: 32722.56 | M28: =(#REF!*12)/156 -> 
A29: M2 | B29: Pendrive 64GB | C29: un | D29: =SUMIF(FCON1_Qde!$A$12:$A$33,"="&FCON!$A29,FCON1_Qde!$D$12:$D$33) -> 13 | E29: 46.42 | F29: 57.28 | G29: =FCON3_FatorK2345!$E$23 -> 1.2339 | H29: 603.46 | I29: 744.64 | M29: =#REF! -> 
A30: M3 | B30: HD Externo 2TB | C30: un | D30: =SUMIF(FCON1_Qde!$A$12:$A$33,"="&FCON!$A30,FCON1_Qde!$D$12:$D$33) -> 1 | E30: 389.99 | F30: 481.21 | G30: =FCON3_FatorK2345!$E$23 -> 1.2339 | H30: 389.99 | I30: 481.21 | M30: =#REF! -> 
A31: M4 | B31: Impressoras | C31: un x mês | D31: =SUMIF(FCON1_Qde!$A$12:$A$37,"="&FCON!$A31,FCON1_Qde!$D$12:$D$37) -> 6 | E31: 225.09 | F31: =ROUND(E31*G31,2) -> 277.74 | G31: =FCON3_FatorK2345!$E$23 -> 1.2339 | H31: =ROUND(D31*E31,2) -> 1350.54 | I31: =ROUND(F31*D31,2) -> 1666.44 | M31: =#REF!/6 -> 
A32: EQ | B32: Equipamento | H32: =SUBTOTAL(9,H33:H34) -> 318922.08 | I32: =SUBTOTAL(9,I33:I34) -> 393518.16
A33: E1 | B33: Veículo pick-up 4x4 cabine dupla diesel | C33: mês | D33: =SUMIF(FCON1_Qde!$A$12:$A$37,"="&FCON!$A33,FCON1_Qde!$D$12:$D$37) -> 48 | E33: 6494.21 | F33: =ROUND(E33*G33,2) -> 8013.21 | G33: =FCON3_FatorK2345!$E$23 -> 1.2339 | H33: =ROUND(D33*E33,2) -> 311722.08 | I33: =ROUND(F33*D33,2) -> 384634.08 | M33: =#REF! ->  | T33: '
A34: E2 | B34: Estação total completa | C34: mês | D34: =SUMIF(FCON1_Qde!$A$12:$A$37,"="&FCON!$A34,FCON1_Qde!$D$12:$D$37) -> 6 | E34: 1200 | F34: =ROUND(E34*G34,2) -> 1480.68 | G34: =FCON3_FatorK2345!$E$23 -> 1.2339 | H34: 7200 | I34: 8884.08 | M34: 1200 | O34: =E34=M34 -> TRUE
A35: EC | B35: Escritório Central | H35: =SUBTOTAL(9,H36) -> 41864.41 | I35: =SUBTOTAL(9,I36) -> 51656.52
A36: E1 | B36: Escritório - Administração e Logística | C36: mês | D36: =FCON1_Qde!D39 -> 6 | E36: ='Comp. Escritório'!G10 -> 6977.401333 | F36: =ROUND(E36*G36,2) -> 8609.42 | G36: =FCON3_FatorK2345!$E$23 -> 1.2339 | H36: =ROUND(D36*E36,2) -> 41864.41 | I36: 51656.52
A37: TOTAL DOS CUSTOS DIRETOS | H37: =SUBTOTAL(9,H8:H36) -> 2099276.68 | I37: =SUBTOTAL(9,I38:I51) -> 0
A38: =CONCATENATE("A1 - ENCARGOS SOCIAIS = ",FCON2_FatorK1!E36*100,"% x CT(MO)") -> A1 - ENCARGOS SOCIAIS = 70,11% x CT(MO) | H38: =SUBTOTAL(9,H9:H37) -> 2099276.68 | I38: =SUBTOTAL(9,I39:I52) -> 0
A39: =CONCATENATE("A2 - CUSTOS DA ADMINISTRAÇÃO CENTRAL = ",FCON3_FatorK2345!E15*100,"% x CT(MO)") -> A2 - CUSTOS DA ADMINISTRAÇÃO CENTRAL = 9,5% x CT(MO) | H39: 1997740.66 | I39: 0
A40: =CONCATENATE("A3 - LUCRO = ",FCON3_FatorK2345!E14*100,"% x [A1 + A2 + CT(MO) + CT(DP) + CT(MC) + CT(EQ)]") -> A3 - LUCRO = 10% x [A1 + A2 + CT(MO) + CT(DP) + CT(MC) + CT(EQ)] | H40: 1797454.12 | I40: 0
A41: =CONCATENATE("A4 - DESPESAS FISCAIS = ",FCON3_FatorK2345!E10*100,"% x [A1 + A2 + A3 + CT(MO) + CT(DP) + CT(MC) + CT(EQ)]") -> A4 - DESPESAS FISCAIS = 9,46% x [A1 + A2 + A3 + CT(MO) + CT(DP) + CT(MC) + CT(EQ)] | H41: 1597167.58 | I41: 0
A42: TOTAL DA PROPOSTA | H42: =SUBTOTAL(9,I9:I36) -> 4203187.55 | I42: 0
A43: NOME DO INFORMANTE: | H43: QUALIFICAÇÃO
A45: ASSINATURA: | H45: DATA:
A47: OBSERVAÇÃO:
A48: Uni - unidade de medição do insumo;
A49: Qde - Quantidade do Insumo (detalhar quantitativos na Planilha "FPRO1")
A50: CUD - Custo Unitário Direto do Insumo (sem encargos, taxas e impostos)
A51: CT - Custo Total (sem encargos, taxas e impostos) - CT = Qde x CUD
A52: FatorK - Taxa de Ressarcimento de Despesas e Encargos (detalhar composição nas Planilhas "FPRO2" e "FPRO3")
A53: PU - Preço Unitário (incluído encargos, taxas e impostos) - PU = CUD x FatorK
A54: PT - Preço Total (incluído encargos, taxas e impostos) - PT = Qde x PU

Sheet FCON1_Qde
A1: ' | M1: CODIGO:
M2: FCON-1
A3: NOME DA CONSULTORA:
A5: PROJETO: | C5: PRODUTO: | M5: EDITAL:
A6: SERVIÇOS ESPECIALIZADOS PARA ELABORAÇÃO DOS RELATÓRIOS DE REVISÃO PERIÓDICA DE SEGURANÇA DE BARRAGEM (RPSB) DO EIXO LESTE - PISF
A7: Cod. | B7: Insumo - Produto RPS | C7: Uni | D7: Qde Total | E7: PRODUTOS
E8: P1 | F8: P2 | G8: P3 | H8: P4 | I8: P5 | J8: P6 | K8: P7 | L8: P8 | M8: P9 | N8: P10 | O8: P11 | P8: P12 | Q8: P13
E9: 2104 | F9: 2105 | G9: 2106 | H9: 2107 | I9: 2108 | J9: 2109 | K9: 2110 | L9: 2111 | M9: 2112 | N9: 2113 | O9: 2114 | P9: 2115 | Q9: PE
E10: M | F10: G | G10: M | H10: M | I10: M | J10: P | K10: P | L10: M | M10: P | N10: P | O10: M | P10: P
A11: MO | B11: Mão-de-Obra
A12: P0 | B12: Coordenador Geral | C12: mês | D12: =SUM(E12:Q12) -> 6 | E12: 0.5 | F12: 1 | G12: 0.5 | H12: 0.5 | I12: 0.5 | J12: 0.3 | K12: 0.3 | L12: 0.5 | M12: 0.3 | N12: 0.3 | O12: 0.5 | P12: 0.3 | Q12: 0.5 | S12: =6*1 -> 6 | U12: =D12=S12 -> TRUE
A13: P1 | B13: Engenheiro Hidráulico | C13: mês | D13: =SUM(E13:Q13) -> 18 | E13: =3*E$12 -> 1.5 | F13: 3 | G13: 1.5 | H13: 1.5 | I13: 1.5 | J13: 0.9 | K13: 0.9 | L13: 1.5 | M13: 0.9 | N13: 0.9 | O13: 1.5 | P13: 0.9 | Q13: 1.5 | S13: =6*3 -> 18 | U13: =D13=S13 -> TRUE
A14: P1 | B14: Engenheiro Hidrólogo | C14: mês | D14: 18 | E14: =3*E$12 -> 1.5 | F14: =3*F$12 -> 3 | G14: 1.5 | H14: 1.5 | I14: 1.5 | J14: 0.9 | K14: 0.9 | L14: 1.5 | M14: 0.9 | N14: 0.9 | O14: 1.5 | P14: 0.9 | Q14: 1.5 | S14: =6*3 -> 18 | U14: TRUE
A15: P1 | B15: Engenheiro Geotécnico | C15: mês | D15: 18 | E15: 1.5 | F15: 3 | G15: 1.5 | H15: 1.5 | I15: 1.5 | J15: 0.9 | K15: 0.9 | L15: 1.5 | M15: 0.9 | N15: 0.9 | O15: 1.5 | P15: 0.9 | Q15: 1.5 | S15: 18 | U15: TRUE
A16: P1 | B16: Engenheiro Estrutural | C16: mês | D16: 18 | E16: 1.5 | F16: 3 | G16: 1.5 | H16: 1.5 | I16: 1.5 | J16: 0.9 | K16: 0.9 | L16: 1.5 | M16: 0.9 | N16: 0.9 | O16: 1.5 | P16: 0.9 | Q16: 1.5 | S16: 18 | U16: TRUE
A17: P1 | B17: Engenheiro Mecânico | C17: mês | D17: 18 | E17: 1.5 | F17: 3 | G17: 1.5 | H17: 1.5 | I17: 1.5 | J17: 0.9 | K17: 0.9 | L17: 1.5 | M17: 0.9 | N17: 0.9 | O17: 1.5 | P17: 0.9 | Q17: 1.5 | S17: 18 | U17: TRUE
A18: P1 | B18: Engenheiro Eletricista | C18: mês | D18: 18 | E18: 1.5 | F18: 3 | G18: 1.5 | H18: 1.5 | I18: 1.5 | J18: 0.9 | K18: 0.9 | L18: 1.5 | M18: 0.9 | N18: 0.9 | O18: 1.5 | P18: 0.9 | Q18: 1.5 | S18: 18 | U18: TRUE
A19: P1 | B19: Geólogo | C19: mês | D19: 18 | E19: 1.5 | F19: 3 | G19: 1.5 | H19: 1.5 | I19: 1.5 | J19: 0.9 | K19: 0.9 | L19: 1.5 | M19: 0.9 | N19: 0.9 | O19: 1.5 | P19: 0.9 | Q19: 1.5 | S19: 18 | U19: TRUE
A20: T1 | B20: Técnico Cadista/Estruturas | C20: mês | D20: 6 | E20: 0.5 | F20: 1 | G20: 0.5 | H20: 0.5 | I20: 0.5 | J20: 0.3 | K20: 0.3 | L20: 0.5 | M20: 0.3 | N20: 0.3 | O20: 0.5 | P20: 0.3 | Q20: 0.5 | S20: =6*1 -> 6 | U20: TRUE
A21: T1 | B21: Técnico Geopro/Hidrologia | C21: mês | D21: 6 | E21: 0.5 | F21: 1 | G21: 0.5 | H21: 0.5 | I21: 0.5 | J21: 0.3 | K21: 0.3 | L21: 0.5 | M21: 0.3 | N21: 0.3 | O21: 0.5 | P21: 0.3 | Q21: 0.5 | S21: =6*1 -> 6 | U21: TRUE
A22: T1 | B22: Topógrafo | C22: mês | D22: =SUM(E22:Q22) -> 6 | E22: 0.5 | F22: 1 | G22: 0.5 | H22: 0.5 | I22: 0.5 | J22: 0.3 | K22: 0.3 | L22: 0.5 | M22: 0.3 | N22: 0.3 | O22: 0.5 | P22: 0.3 | Q22: 0.5 | S22: 6 | U22: TRUE
A23: T3 | B23: Auxiliar de topografia | C23: mês | D23: =SUM(E23:Q23) -> 12 | E23: =2*E$12 -> 1 | F23: =2*F$12 -> 2 | G23: 1 | H23: 1 | I23: 1 | J23: 0.6 | K23: 0.6 | L23: 1 | M23: 0.6 | N23: 0.6 | O23: 1 | P23: =2*P$12 -> 0.6 | Q23: =2*Q$12 -> 1 | S23: =6*2 -> 12 | U23: TRUE
A24: A1 | B24: Secretário | C24: mês | D24: =SUM(E24:Q24) -> 6 | E24: =1*E$12 -> 0.5 | F24: =1*F$12 -> 1 | G24: 0.5 | H24: 0.5 | I24: 0.5 | J24: 0.3 | K24: 0.3 | L24: 0.5 | M24: 0.3 | N24: 0.3 | O24: 0.5 | P24: 0.3 | Q24: 0.5 | S24: 6 | U24: TRUE
A25: A1 | B25: Redator/Revisor/Editor | C25: mês | D25: =SUM(E25:Q25) -> 6 | E25: 0.5 | F25: 1 | G25: 0.5 | H25: 0.5 | I25: 0.5 | J25: 0.3 | K25: 0.3 | L25: 0.5 | M25: 0.3 | N25: 0.3 | O25: 0.5 | P25: 0.3 | Q25: 0.5 | S25: 6 | U25: TRUE
A26: DP | B26: Diárias e Passagens
A27: V0 | B27: Diárias | C27: dias | D27: =SUM(E27:Q27) -> 210 | E27: =6*3 -> 18 | F27: =6*4 -> 24 | G27: =6*3 -> 18 | H27: =6*3 -> 18 | I27: =6*3 -> 18 | J27: =6*2 -> 12 | K27: =6*2 -> 12 | L27: =6*3 -> 18 | M27: =6*2 -> 12 | N27: =6*2 -> 12 | O27: =6*3 -> 18 | P27: =6*2 -> 12 | Q27: =6*3 -> 18 | S27: 210 | U27: TRUE
A28: V1 | B28: Aluguel veículo leve 1.6 c/ Motorista | C28: dias | D28: =SUM(E28:Q28) -> 60 | E28: =E27/3 -> 6 | F28: =F27/3 -> 8 | G28: 6 | H28: 6 | I28: 6 | J28: =J27/6 -> 2 | K28: =K27/6 -> 2 | L28: 6 | M28: =M27/6 -> 2 | N28: =N27/6 -> 2 | O28: 6 | P28: =P27/6 -> 2 | Q28: 6 | S28: 60 | U28: TRUE
A29: V2 | B29: Passagens Aéreas (ida e volta) | C29: uni | D29: =SUM(E29:Q29) -> 60 | E29: =E27/3 -> 6 | F29: =F27/3 -> 8 | G29: =G27/3 -> 6 | H29: =H27/3 -> 6 | I29: =I27/3 -> 6 | J29: =J27/6 -> 2 | K29: =K27/6 -> 2 | L29: =L27/3 -> 6 | M29: =M27/6 -> 2 | N29: =N27/6 -> 2 | O29: =O27/3 -> 6 | P29: =P27/6 -> 2 | Q29: =Q27/3 -> 6 | S29: 60 | U29: TRUE
A30: MC | B30: Materiais de Consumo
A31: M1 | B31: Notebook | C31: un x mês | D31: =SUM(D12:D25)-D22-D23 -> 156 | E31: =$D$31/13 -> 12 | F31: =$D$31/13 -> 12 | G31: 12 | H31: 12 | I31: 12 | J31: 12 | K31: 12 | L31: 12 | M31: 12 | N31: 12 | O31: 12 | P31: 12 | Q31: 12 | S31: =SUM(D12:D25)-D22-D23 -> 156 | U31: TRUE
A32: M2 | B32: Pendrive 64GB | C32: uni | D32: =SUM(E32:Q32) -> 13 | E32: 1 | F32: 1 | G32: 1 | H32: 1 | I32: 1 | J32: 1 | K32: 1 | L32: 1 | M32: 1 | N32: 1 | O32: 1 | P32: 1 | Q32: 1 | S32: 13 | U32: TRUE
A33: M3 | B33: HD Externo 1TB | C33: uni | D33: =SUM(E33:Q33) -> 1 | E33: 1 | F33: 0 | G33: 0 | H33: 0 | I33: 0 | J33: 0 | K33: 0 | L33: 0 | M33: 0 | N33: 0 | O33: 0 | P33: 0 | Q33: 0 | S33: 1 | T33: ' | U33: TRUE
A34: M4 | B34: Impressoras | C34: un x mês | D34: =SUM(E34:Q34) -> 6 | E34: =6/13 -> 0.4615384615 | F34: =6/13 -> 0.4615384615 | G34: 0.4615384615 | H34: 0.4615384615 | I34: 0.4615384615 | J34: 0.4615384615 | K34: 0.4615384615 | L34: 0.4615384615 | M34: 0.4615384615 | N34: 0.4615384615 | O34: 0.4615384615 | P34: 0.4615384615 | Q34: 0.4615384615 | S34: =6*1 -> 6 | U34: TRUE
A35: EQ | B35: Equipamento
A36: E1 | B36: Veículo pick-up 4x4 cabine dupla diesel | C36: mês | D36: =(1+3+3+1)*6 -> 48 | E36: =8*E$12 -> 4 | F36: 8 | G36: 4 | H36: 4 | I36: 4 | J36: 2.4 | K36: 2.4 | L36: 4 | M36: 2.4 | N36: 2.4 | O36: 4 | P36: 2.4 | Q36: 4 | S36: =(1+3+3+1)*6 -> 48 | U36: TRUE
A37: E2 | B37: Estação total completa | C37: mês | D37: =SUM(E37:Q37) -> 6 | E37: =1*E$12 -> 0.5 | F37: 1 | G37: 0.5 | H37: 0.5 | I37: 0.5 | J37: 0.3 | K37: 0.3 | L37: 0.5 | M37: 0.3 | N37: 0.3 | O37: 0.5 | P37: 0.3 | Q37: 0.5 | S37: =6*1 -> 6 | U37: TRUE
A38: EC | B38: Escritório Central
A39: E1 | B39: Escritório - Administração e Logística | C39: mês | D39: =SUM(E39:Q39) -> 6 | E39: 0.5 | F39: 1 | G39: 0.5 | H39: 0.5 | I39: 0.5 | J39: 0.3 | K39: 0.3 | L39: 0.5 | M39: 0.3 | N39: 0.3 | O39: 0.5 | P39: 0.3 | Q39: 0.5
A40: NOME DO INFORMANTE: | L40: QUALIFICAÇÃO:
A42: ASSINATURA: | L42: DATA:
A44: OBSERVAÇÃO:
A46: LEGENDA: P = BARRAGEM PEQUENO PORTE; M = BARRAGEM MÉDIO PORTE; G = BARRAGEM GRANDE PORTE
A47: PE = PROCEDIMENTO EMERGENCIAL - MONITORAMENTO E CONTROLE DE ESTABILIDADE DE BARRAGEM - ( PAE )

Sheet FCON2_FatorK1
A1: ' | F1: CODIGO:
F2: FCON-2
A3: NOME DA CONSULTORA:
A5: PROJETO: | C5: PRODUTO: | F5: EDITAL:
A6: SERVIÇOS ESPECIALIZADOS PARA ELABORAÇÃO DOS RELATÓRIOS DE REVISÃO PERIÓDICA DE SEGURANÇA DE BARRAGEM (RPSB) DO EIXO LESTE - PISF
A7: DISCRIMINAÇÃO | E7: VALORES
E8: % | F8: R$
A9: A | B9: ENCARGOS SOCIAIS BÁSICOS | E9: =ROUND(SUM(E10:E18),4) -> 0.368 | F9: =E9*FCON!$H$8 -> 583549.7808
A10: A1 | B10: SECONCI | E10: 0 | F10: =E10*FCON!$H$8 -> 0
A11: A2 | B11: INSS | E11: 0.2 | F11: =E11*FCON!$H$8 -> 317146.62
A12: A3 | B12: FGTS | E12: 0.08 | F12: =E12*FCON!$H$8 -> 126858.648
A13: A4 | B13: Incra | E13: 0.002 | F13: =E13*FCON!$H$8 -> 3171.4662
A14: A5 | B14: Salário Educação | E14: 0.025 | F14: =E14*FCON!$H$8 -> 39643.3275
A15: A6 | B15: Sebrae | E15: 0.006 | F15: =E15*FCON!$H$8 -> 9514.3986
A16: A7 | B16: Seguro contra acidente de trabalho | E16: 0.03 | F16: =E16*FCON!$H$8 -> 47571.993
A17: A8 | B17: Senai | E17: 0.01 | F17: =E17*FCON!$H$8 -> 15857.331
A18: A9 | B18: Sesi | E18: 0.015 | F18: =E18*FCON!$H$8 -> 23785.9965
A19: B | B19: ENCARGOS SOCIAIS QUE RECEBEM INCIDÊNCIA DE "A" | E19: =ROUND(SUM(E20:E26),4) -> 0.1761 | F19: =E19*FCON!$H$8 -> 279247.5989
A20: B1 | B20: 13º Salário | E20: 0.0833 | F20: =E20*FCON!$H$8 -> 132091.5672
A21: B2 | B21: Auxilio Enfermidade | E21: 0.0066 | F21: =E21*FCON!$H$8 -> 10465.83846
A22: B3 | B22: Licença Paternidade | E22: 0.0005 | F22: =E22*FCON!$H$8 -> 792.86655
A23: B4 | B23: Faltas Justificadas | E23: 0.0056 | F23: =E23*FCON!$H$8 -> 8880.10536
A24: B5 | B24: Auxílio Acidente de Trabalho | E24: 0.0008 | F24: =E24*FCON!$H$8 -> 1268.58648
A25: B6 | B25: Férias Gozadas | E25: 0.079 | F25: =E25*FCON!$H$8 -> 125272.9149
A26: B7 | B26: Salário Maternidade | E26: 0.0003 | F26: =E26*FCON!$H$8 -> 475.71993
A27: C | B27: ENCARGOS SOCIAIS QUE NÃO RECEBEM INCIDÊNCIA DE "A" | E27: =ROUND(SUM(E28:E32),4) -> 0.089 | F27: =E27*FCON!$H$8 -> 141130.2459
A28: C1 | B28: Aviso Prévio Indenizado | E28: 0.0363 | F28: =E28*FCON!$H$8 -> 57562.11153
A29: C2 | B29: Aviso Prévio Trabalhado | E29: 0.0009 | F29: =E29*FCON!$H$8 -> 1427.15979
A30: C3 | B30: Férias Indenizadas | E30: 0.0264 | F30: =E30*FCON!$H$8 -> 41863.35384
A31: C4 | B31: Depósito Recisão Sem Justa Causa | E31: 0.0223 | F31: =E31*FCON!$H$8 -> 35361.84813
A32: C5 | B32: Indenização Adicional | E32: 0.0031 | F32: =E32*FCON!$H$8 -> 4915.77261
A33: D | B33: REINCIDÊNCIAS | E33: =ROUND(SUM(E34:E35),4) -> 0.068 | F33: =E33*FCON!$H$8 -> 107829.8508 | T33: '
A34: D1 | B34: Reincidência de "A" sobre "B" | E34: =ROUND(E9*E19,4) -> 0.0648 | F34: =E34*FCON!$H$8 -> 102755.5049
A35: D2 | B35: Reincidência de "A" sobre Aviso Prévio Trabalhado e reincidência do FGTS sobre aviso prévio indenizado | E35: =ROUND(E9*E29,4)+ROUND(E28*E12,4) -> 0.0032 | F35: =E35*FCON!$H$8 -> 5074.34592
A36: K1 | B36: ENCARGOS SOCIAIS | E36: =ROUND(E9+E19+E27+E33,4) -> 0.7011 | F36: =E36*FCON!$H$8 -> 1111757.476
A37: KP0 | B37: TAXA DE RESSARCIMENTO DE DESPESAS E ENCARGOS SOBRE M.O. | E37: =ROUND((1+E36+FCON3_FatorK2345!E15+'ENCARGOS COMPLEM.'!E9)*(1+FCON3_FatorK2345!E14)*(1+FCON3_FatorK2345!E10),4) -> 2.211
A38: KP1 | B38: TAXA DE RESSARCIMENTO DE DESPESAS E ENCARGOS SOBRE M.O. | E38: =ROUND((1+E36+FCON3_FatorK2345!E15+'ENCARGOS COMPLEM.'!E12)*(1+FCON3_FatorK2345!E14)*(1+FCON3_FatorK2345!E10),4) -> 2.2351
A39: KT1 | B39: TAXA DE RESSARCIMENTO DE DESPESAS E ENCARGOS SOBRE M.O. | E39: =ROUND((1+E36+FCON3_FatorK2345!E15+'ENCARGOS COMPLEM.'!E15)*(1+FCON3_FatorK2345!E14)*(1+FCON3_FatorK2345!E10),4) -> 2.4758
A40: KT3 | B40: TAXA DE RESSARCIMENTO DE DESPESAS E ENCARGOS SOBRE M.O. | E40: =ROUND((1+E36+FCON3_FatorK2345!E15+'ENCARGOS COMPLEM.'!E18)*(1+FCON3_FatorK2345!E14)*(1+FCON3_FatorK2345!E10),4) -> 2.7481
A41: KA1 | B41: TAXA DE RESSARCIMENTO DE DESPESAS E ENCARGOS SOBRE M.O. | E41: =ROUND((1+E36+FCON3_FatorK2345!E15+'ENCARGOS COMPLEM.'!E21)*(1+FCON3_FatorK2345!E14)*(1+FCON3_FatorK2345!E10),4) -> 2.6505
A42: NOME DO INFORMANTE: | E42: QUALIFICAÇÃO
A44: ASSINATURA: | E44: DATA:
A46: OBSERVAÇÃO:
A47: 1 - DISCRIMINAR OS ENCARGOS SOCIAIS COM SEUS RESPECTIVOS PERCENTUAS TOTALIZANDO OS MESMOS.
A48: 2 - APLICAR O % TOTAL P/ CALCULAR OS E. SOCIAIS INCIDENTES NA MÃO-DE-OBRA COM VÍNCULO, LINHA "B1" DO FPRO
A49: K - Taxa de Ressarcimento de Despesas e Encargos sobre a Mão de Obra (incide apenas no Insumo Codigo M.O.)
A50: K = (1 + K1 + K2 + Encargos Complementares) x (1 + K3) x (1 + K4)

Sheet FCON3_FatorK2345
A1: ' | F1: CODIGO:
F2: FCON-3
A3: NOME DA CONSULTORA:
A5: PROJETO: | C5: PRODUTO: | F5: EDITAL:
A6: SERVIÇOS ESPECIALIZADOS PARA ELABORAÇÃO DOS RELATÓRIOS DE REVISÃO PERIÓDICA DE SEGURANÇA DE BARRAGEM (RPSB) DO EIXO LESTE - PISF
A7: DISCRIMINAÇÃO 1 | E7: VALORES
E8: % | F8: R$
A9: K4 | B9: DESPESAS FISCAIS | D9: K4 (%)2 | E9: K4' (%)3
D10: =ROUND(D11+D12+D13,4) -> 0.0865 | E10: =ROUND(E11+E12+E13,4) -> 0.0946 | F10: =E10*SUM(FCON!$H$8*(1+FCON2_FatorK1!$E$36)+FCON!$H$23+FCON!$H$27+FCON3_FatorK2345!$F$15+FCON3_FatorK2345!$F$14) -> 312272.8539
A11: 1 | B11: ISS | D11: 0.05 | E11: =ROUND((1/(1-$D$10))*D11,4) -> 0.0547 | F11: =E11*SUM(FCON!$H$8*(1+FCON2_FatorK1!$E$36)+FCON!$H$23+FCON!$H$27+FCON3_FatorK2345!$F$15+FCON3_FatorK2345!$F$14) -> 180563.6903
A12: 2 | B12: PIS | D12: 0.0065 | E12: =ROUND((1/(1-$D$10))*D12,4) -> 0.0071 | F12: =E12*SUM(FCON!$H$8*(1+FCON2_FatorK1!$E$36)+FCON!$H$23+FCON!$H$27+FCON3_FatorK2345!$F$15+FCON3_FatorK2345!$F$14) -> 23436.96895
A13: 3 | B13: COFINS | D13: 0.03 | E13: =ROUND((1/(1-$D$10))*D13,4) -> 0.0328 | F13: =E13*SUM(FCON!$H$8*(1+FCON2_FatorK1!$E$36)+FCON!$H$23+FCON!$H$27+FCON3_FatorK2345!$F$15+FCON3_FatorK2345!$F$14) -> 108272.1946
A14: K3 | B14: REMUNERAÇÃO DA EMPRESA (LUCRO) | E14: 0.1 | F14: =E14*SUM(FCON!H8*(1+FCON2_FatorK1!E36)+FCON!H23+FCON!H27+FCON3_FatorK2345!F15) -> 300089.2311
A15: K2 | B15: CUSTOS DA ADMINISTRAÇÃO CENTRAL | E15: =ROUND(SUM(E16:E18),4) -> 0.095 | F15: =E15*FCON!$H$8 -> 150644.6445
A16: 4 | B16: Custos da equipe da administração central da empresa consultora (diretoria, pessoal técnico de apoio e pessoal administrativo não diretamente vinculado à prestação dos serviços) | E16: 0.045 | F16: =E16*FCON!$H$8 -> 71357.9895
A17: 5 | B17: Outras despesas que afetam o custo de produção como treinamento, biblioteca, programa de qualidade, auditoria interna e externa | E17: 0.025 | F17: =E17*FCON!$H$8 -> 39643.3275
A18: 6 | B18: Despesas com aluguéis, comunicação, manutenção e transporte não diretamente relacionados com o custo direto dos serviços | E18: 0.025 | F18: =E18*FCON!$H$8 -> 39643.3275
A19: k5 | B19: Riscos, Seguros, Garantias e Despesas Financeiras * | E19: =ROUND(SUM(E20:E22),4) -> 0.0248 | F19: =E19*FCON!$H$8 -> 39326.18088
A20: 7 | B20: Seguros + garantias | E20: 0.0057 | F20: =E20*FCON!$H$8 -> 9038.67867
A21: 8 | B21: Riscos | E21: 0.01 | F21: =E21*FCON!$H$8 -> 15857.331
A22: 9 | B22: Despesas Financeiras | E22: 0.0091 | F22: =E22*FCON!$H$8 -> 14430.17121
A23: K' | B23: TAXA DE RESSARCIMENTO DE DESPESAS SOBRE CUSTOS DIVERSOS | E23: =ROUND((1+E14)*(1+E10)*(1+E19),4) -> 1.2339
A24: NOME DO INFORMANTE: | E24: QUALIFICAÇÃO:
A26: ASSINATURA: | E26: DATA:
A28: Observação:
A29: 1 - RELACIONAR OS CUSTOS DE ADMINISTRAÇÃO COM RESPECTIVOS PERCENTUAIS INCIDENTES NA MÃO -DE-OBRA
A30: 1 - DISCRIMINAR OS TRIBUTOS QUE INCIDEM SOBRE OS CUSTOS DA PRESTAÇÃO DOS SERVIÇOS
A31: 2 - K4 = INDICAR % DE CADA TRIBUTO E A SOMA DOS MESMOS (ex: ISS 5% + PIS 0,65% + COFINS 3,00% = 8,65%)
A32: 3 - AS DESPESAS FISCAIS (K4) INCIDEM SOBRE O TOTAL DA FATURA E NÃO SOBRE OS CUSTOS INCORRIDOS,
A33: DEVENDO SER CALCULADO O K4' APLICANDO-SE A SEGUINTE FÓRMULA: | T33: '
A34: K4' = { [ 1 / ( 1 - K4) ] - 1 } x 100
A35: =CONCATENATE(" K4' = { [ 1 / ( 1 - ",D10," ) ] - 1 } x 100") -> K4' = { [ 1 / ( 1 - 0,0865 ) ] - 1 } x 100
A36: K' - Taxa de Ressarcimento de Despesas sobre Custos Diversos (incide sobre os Insumos Codigo DP, MC e TP)
A37: K' = (1 + K3) x (1 + K4) x (1+K5)
A38: K2 - Incide sobre o Custo Total (CT) da Mão de Obra (MO)
A39: K3 - Incide sobre o Custo Total (CT) Mão de Obra com encargos (MO x K1), demais Custos (DP e MC), e Custos da Administração Central (K2)
A40: K4 - Incide sobre o Custo Total (CT) Mão de Obra com encargos (MO x K1), demais Custos (DP e MC), Custos da Administração Central (K2) e Lucro (K3)
A41: k5 - Riscos, Seguros e Garantias
A42: * | B42: Utilou-se a apropriação do TR de O&M Vigente

Sheet ENCARGOS COMPLEM.
A1: ' | F1: CODIGO:
F2: FCON-4
A3: NOME DA CONSULTORA:
A5: PROJETO: | C5: PRODUTO: | F5: EDITAL:
A6: SERVIÇOS ESPECIALIZADOS PARA ELABORAÇÃO DOS RELATÓRIOS DE REVISÃO PERIÓDICA DE SEGURANÇA DE BARRAGEM (RPSB) DO EIXO LESTE - PISF
A7: DISCRIMINAÇÃO | E7: VALORES
E8: % | F8: R$
A9: P0 | B9: Coordenador - Senior | E9: =ROUND(SUM(E10:E11),4) -> 0.0402 | F9: =SUM(F10:F11) -> 680.291334 | G9: P8061
B10: ALIMENTAÇÃO | E10: 0.04 | F10: =E10*FCON!$E$9 -> 676.9068
B11: EXAME OCUPACIONAL | E11: 0.0002 | F11: =E11*FCON!$E$9 -> 3.384534
A12: P1 | B12: Engenheiro Civil - Pleno | E12: =SUM(E13:E14) -> 0.0602 | F12: =SUM(F13:F14) -> 669.847206 | G12: P8066
B13: ALIMENTAÇÃO | E13: 0.0599 | F13: =E13*FCON!$E$10 -> 666.509097
B14: EXAME OCUPACIONAL | E14: 0.0003 | F14: =E14*FCON!$E$10 -> 3.338109
A15: T1 | B15: TÉCNICO PLENO | E15: =SUM(E16:E17) -> 0.2601 | F15: =SUM(F16:F17) -> 665.416431 | G15: P8143
B16: ALIMENTAÇÃO | E16: 0.2586 | F16: =E16*FCON!$E$17 -> 661.578966
B17: EXAME OCUPACIONAL | E17: 0.0015 | F17: =E17*FCON!$E$17 -> 3.837465
A18: T3 | B18: AUXILIAR DE TOPOGRAFIA | E18: =SUM(E19:E20) -> 0.4863 | F18: =SUM(F19:F20) -> 665.880864 | G18: P8028
B19: ALIMENTAÇÃO | E19: 0.4832 | F19: =E19*FCON!$E$20 -> 661.636096
B20: EXAME OCUPACIONAL | E20: 0.0031 | F20: =E20*FCON!$E$20 -> 4.244768
A21: A1 | B21: SECRETÁRIO/REDATOR - PLENO | E21: =SUM(E22:E23) -> 0.4052 | F21: =SUM(F22:F23) -> 665.553156 | G21: P8026
B22: ALIMENTAÇÃO | E22: 0.4026 | F22: =E22*FCON!$E$21 -> 661.282578
B23: EXAME OCUPACIONAL | E23: 0.0026 | F23: =E23*FCON!$E$21 -> 4.270578
A24: NOME DO INFORMANTE: | E24: QUALIFICAÇÃO
A26: ASSINATURA: | E26: DATA:
A28: OBSERVAÇÃO:
A29: 1. Os encargos Complementares foram retirados da tabela SICRO para serviços de consultoria, vigência outubro de 2022
T33: '

Sheet SALÁRIOS HORAMÊS
A1: '
A2: TABELA SALÁRIOS DE PROFISSIONAIS DE ENGENHARIA CONSULTIVA
A4: PROFISSIONAL | B4: CATEGORIA | C4: NÍVEL | D4: TEMPO FORMAÇÃO (ANOS) | E4: EXPERIÊNCIA (PROJETOS) | F4: SALÁRIO-HORA ADOTADO (R$) (176 H/MÊS) | H4: Ref | N4: PROFISSIONAL(Descrição na tabela enviada à AD/GCT) | O4: REFERÊNCIA | P4: FONTE | Q4: VALOR | R4: DESCRIÇÃO
A5: CONSULTOR | B5: C | C5: PÓS-GRADUAÇÃO | D5: - | E5: + 20 | F5: =20307.2/176 -> 115.3818182 | H5: P8060 | I5: SICRO | J5: 20302.32 | K5: Engenheiro consultor especial | N5: CONSULTOR | O5: P8060 | P5: SICRO | Q5: 20302.32 | R5: Engenheiro consultor especial
A6: ENGENHERIO SÊNIOR | B6: P0 | C6: SUPERIOR | D6: T > 15 | E6: + 15 | F6: =16922.67/176 -> 96.15153409 | H6: P8061 | I6: SICRO | J6: 16918.6 | K6: Engenheiro coordenador | N6: ENGENHERIO SÊNIOR | O6: P8061 | P6: SICRO | Q6: 16918.6 | R6: Engenheiro coordenador
A7: ENGENHEIRO PLENO | B7: P1 | C7: SUPERIOR | D7: 10 < T < 15 | E7: + 10 | F7: =11127.03/176 -> 63.22176136 | H7: P8066 | I7: SICRO | J7: 11294.64 | K7: Engenheiro de projetos pleno | N7: ENGENHEIRO PLENO | O7: P8066 | P7: SICRO | Q7: 11294.64 | R7: Engenheiro de projetos pleno
A8: ENGENHEIRO MÉDIO | B8: P2 | C8: SUPERIOR | D8: 8 < T < 10 | E8: + 5 | F8: =10302/176 -> 58.53409091 | H8: P8066 | I8: SICRO | J8: 11294.64 | K8: Engenheiro de projetos pleno | N8: ENGENHEIRO MÉDIO | O8: P8066 | P8: SICRO | Q8: 11294.64 | R8: Engenheiro de projetos pleno
A9: ENGENHEIRO JÚNIOR | B9: P3 | C9: SUPERIOR | D9: 4 < T < 8 | E9: + 2 | F9: =10302/176 -> 58.53409091 | H9: P8065 | I9: SICRO | J9: 11067 | K9: Engenheiro de projetos júnior | N9: ENGENHEIRO JÚNIOR | O9: P8065 | P9: SICRO | Q9: 11067 | R9: Engenheiro de projetos júnior
A10: ENGENHEIRO TRAINEE | B10: P4 | C10: SUPERIOR | D10: T < 4 | E10: - | F10: =J10 -> 79.67 | H10: 56.11.07 | I10: SUDECAP | J10: 79.67 | K10: ENGENHEIRO TRAINEE PROJETO | N10: ENGENHEIRO TRAINEE | O10: 56.11.07 | P10: SUDECAP | Q10: 79.67 | R10: ENGENHEIRO TRAINEE PROJETO
A11: TÉCNICO - PROFISSIONAL ESPECIAL | B11: TS | C11: MÉDIO/ESPECIALIZADO | D11: T > 10 | E11: + 15 | F11: =4012.52/176 -> 22.79840909 | H11: P8151 | I11: SICRO | J11: 4293.4 | K11: Técnico de segurança do trabalho | N11: TÉCNICO - PROFISSIONAL ESPECIAL | O11: P8151 | P11: SICRO | Q11: 4293.4 | R11: Técnico de segurança do trabalho
A12: TÉCNICO - PROFISSIONAL SÊNIOR | B12: T0 | C12: MÉDIO/ESPECIALIZADO | D12: 5 < T < 10 | E12: + 10 | F12: =3038.5/176 -> 17.26420455 | H12: P8147 | I12: SICRO | J12: 3069.63 | K12: Técnico de obras | N12: TÉCNICO - PROFISSIONAL SÊNIOR | O12: P8147 | P12: SICRO | Q12: 3069.63 | R12: Técnico de obras
A13: TÉCNICO - PROFISSIONAL PLENO | B13: T1 | C13: MÉDIO/ESPECIALIZADO | D13: 5 < T < 10 | E13: + 5 | F13: =2558.31/176 -> 14.53585227 | H13: P8143 | I13: SICRO | J13: 2618.06 | K13: Técnico ambiental | N13: TÉCNICO - PROFISSIONAL PLENO | O13: P8143 | P13: SICRO | Q13: 2618.06 | R13: Técnico ambiental
A14: TÉCNICO - PROFISSIONAL JÚNIOR | B14: T2 | C14: MÉDIO/ESPECIALIZADO | D14: T < 5 | E14: - | F14: =2370.29/176 -> 13.46755682 | H14: P8155 | I14: SICRO | J14: 2433.29 | K14: Técnico em geoprocessamento | N14: TÉCNICO - PROFISSIONAL JÚNIOR | O14: P8155 | P14: SICRO | Q14: 2433.29 | R14: Técnico em geoprocessamento
A15: TÉCNICO - AUXILIAR | B15: T3 | C15: ELEMENTAR | D15: - | E15: - | F15: =1369.28/176 -> 7.78 | H15: P8028 | I15: SICRO | J15: 1401.01 | K15: Auxiliar de laboratório | N15: TÉCNICO - AUXILIAR | O15: P8028 | P15: SICRO | Q15: 1401.01 | R15: Auxiliar de laboratório
A16: SERVENTE/CONTÍNUOS | B16: T4 | C16: - | D16: - | E16: - | F16: =1369.28/176 -> 7.78 | H16: P8025 | I16: SICRO | J16: 1404.01 | K16: Auxiliar | N16: SERVENTE/CONTÍNUOS | O16: P8025 | P16: SICRO | Q16: 1404.01 | R16: Auxiliar
A17: CHEFE DE ESCRITÓRIO | B17: AS | C17: SUPERIOR | D17: T > 15 | E17: - | F17: =3553.55/176 -> 20.190625 | H17: P8038 | I17: SICRO | J17: 3329.2 | K17: Chefe de Escritório | N17: CHEFE DE ESCRITÓRIO | O17: P8038 | P17: SICRO | Q17: 3329.2 | R17: Chefe de Escritório
A18: SECRETÁRIA | B18: A0 | C18: MÉDIO | D18: 8 < T < 15 | E18: - | F18: =2282.97/176 -> 12.97142045 | H18: P8135 | I18: SICRO | J18: 2364.31 | K18: Secretária | N18: SECRETÁRIA | O18: P8135 | P18: SICRO | Q18: 2364.31 | R18: Secretária
A19: ASSISTENTE ADMINISTRATIVO | B19: A1 | C19: MÉDIO | D19: T > 8 | E19: - | F19: =1642.53/176 -> 9.332556818 | H19: P8026 | I19: SICRO | J19: 1681.56 | K19: Auxiliar Administrativo | N19: ASSISTENTE ADMINISTRATIVO | O19: P8026 | P19: SICRO | Q19: 1681.56 | R19: Auxiliar Administrativo
A20: AJUDANTE ADMINISTRATIVO | B20: A2 | C20: MÉDIO | D20: T < 8 | E20: - | F20: =1369.28/176 -> 7.78 | H20: P8025 | I20: SICRO | J20: 1404.01 | K20: Auxiliar | N20: AJUDANTE ADMINISTRATIVO | O20: P8025 | P20: SICRO | Q20: 1404.01 | R20: Auxiliar
A21: AUXILIAR ADMINISTRATIVO/MOTORISTA | B21: A3 | C21: ELEMENTAR | D21: - | E21: - | F21: =1840.67/176 -> 10.45835227 | H21: P8113 | I21: SICRO | J21: 1905.56 | K21: Motorista de veículo leve | N21: AUXILIAR ADMINISTRATIVO/MOTORISTA | O21: P8113 | P21: SICRO | Q21: 1905.56 | R21: Motorista de veículo leve
A22: SERVIÇOS GERAIS/VIGIA | B22: A4 | C22: ELEMENTAR | D22: - | E22: - | F22: 9.51
A24: OBSERVAÇÕES:
A25: 1. Nos salários acima não foi considerada a incidência de Encargos Sociais.
T33: '

Sheet Comp. Escritório
A1: ' | C1: Ministério do Desenvolvimento Regional - MDR
C2: Companhia de Desenvolvimento dos Vales do São Francisco e do Parnaíba
C3: Gerência de Operação do PISF - Centro de Controle e Operação (AD / GOI / CCO)
A5: TERMO DE REFERÊNCIA PARA CONTRATAÇÃO DE RPSB
A8: ITEM | B8: CÓD | C8: CATEGORIA / DESCRIÇÃO | D8: UND. | E8: QUANTID. | F8: VALOR UN | G8: VALOR TOTAL
A10: 1. | C10: ESCRITÓRIO - ADMINISTRAÇÃO E LOGÍSTICA | G10: =SUM(G11:G20) -> 6977.401333 | H10: 6 meses
A11: 1.1 | B11: - | C11: Aluguel | D11: un x mês | E11: 1 | F11: 1200 | G11: =F11*E11 -> 1200
A12: 1.2 | B12: I0123-SEINFRA/CE | C12: Armário de escritório* | D12: un x mês | E12: 6 | F12: =H12 -> 35.89166667 | G12: =F12*E12 -> 215.35 | H12: =K12/6 -> 35.89166667 | I12: I0123 | J12: ARMARIO DE ACO TIPO ESCANINHO - MOD. 3 PORTAS | K12: 215.35
A13: 1.3 | B13: 11534-ORSE/SE | C13: Cadeira giratória, com braço, tipo executiva* | D13: un x mês | E13: 12 | F13: =H13 -> 46.66666667 | G13: 560 | H13: =K13/6 -> 46.66666667 | I13: 11534 | J13: Cadeira giratória, com braço, tipo executiva* | K13: 280
A14: 1.4 | B14: COT_MESA_REUN | C14: Mesas de escritório com gavetas (conforme especificação)* | D14: un x mês | E14: 12 | F14: 14.06 | G14: 168.72
A15: 1.5 | B15: - | C15: Telefone/Internet | D15: un x mês | E15: 1 | F15: 149.9 | G15: 149.9
A16: 1.6 | B16: Comp. Energia | C16: Energia elétrica - Escritórios Apoio Logístico | D16: un x mês | E16: 1 | F16: ='Comp. Energia'!F13 -> 2792.583 | G16: 2792.583
A17: 1.7 | B17: - | C17: Água e esgoto - Escritórios Apoio Logístico | D17: un x mês | E17: 1 | F17: 150 | G17: 150
A18: 1.8 | C18: Material de escritório - (Resma de 500 folhas - Papel A4) | D18: un x mês | E18: 8 | F18: 17.9 | G18: 143.2
A19: 1.9 | B19: 39555-SINAPI/PE | C19: Condicionador de ar 12.000 BTU | D19: un x mês | E19: 4 | F19: =H19 -> 333.2533333 | G19: =F19*E19 -> 1333.013333 | H19: =K19/6 -> 333.2533333 | I19: 39555 | J19: Condicionador de ar 12.000 BTU | K19: 1999.52
A20: 1.10 | B20: F030000293-EMBASA/BA | C20: Projetor multimídia (Datashow) | D20: un x mês | E20: 1 | F20: =H20 -> 264.635 | G20: 264.635 | H20: =K20/6 -> 264.635 | I20: F030000293 | J20: DATA SHOW COM KIT MULTIMIDIA PARA PROJECAO DE APRESENTACOES TIPO LG BS275, OU SIMILAR | K20: 1587.81
A21: OBSERVAÇÃO:
A22: 1. Fonte de Preços: - Sistema Nacional de Pesquisa de Custos e Índices da Construção (Tabela SINAPI/PE). Data base: Abril/2022. - Empresa Baiana de Águas e Saneamento S.A. (Tabela de preços EMBASA). Data base: 10/2021. - Secretaria da Infraestrutura do Estado do Ceará (Tabela 027 SEINFRA/CE). Data base: 03/2021. - Sistema de Orçamento de Obras de Sergipe (ORSE). Data base: 03/2022. - *Utilizou-se como base algumas composições do Anexo III do contrato Vigente de O&M do PISF.
T33: '

Sheet Comp. Energia
A1: ' | B1: Composição Energia
B3: Valor kWh | C3: 0.706
B5: Quantidade | C5: Descrição | D5: Uso diário | E5: KWh/Mês | F5: Custo/Mês
B6: 12 | C6: Celular | D6: 9 horas | E6: 16.2 | F6: =E6*$C$3 -> 11.4372
B7: 4 | C7: Iluminação | D7: 9 horas | E7: 64.8 | F7: =E7*$C$3 -> 45.7488
B8: 1 | C8: Impressora | D8: 60 minutos | E8: 2.7 | F8: 1.9062
B9: 2 | C9: Luminária | D9: 9 horas | E9: 32.4 | F9: 22.8744
B10: 1 | C10: Modem | D10: 24 horas | E10: 19.44 | F10: 13.72464
B11: 12 | C11: Notebook | D11: 9 horas | E11: 972 | F11: 686.232
B12: 4 | C12: Ar-Condicionado | D12: 9 horas | E12: 2847.96 | F12: 2010.65976
E13: =SUM(E6:E12) -> 3955.5 | F13: =SUM(F6:F12) -> 2792.583
T33: '

Sheet SALÁRIOS CONSULTORIA
A1: '
A2: CODEVASF
A3: SALÁRIOS - ENGENHARIA CONSULTIVA - 2023
A4: DATA: Março/2023 | C4: Localidade: Pernambuco
A5: Encargos Sociais | C5: Horista: | D5: ='ENCARGOS SOCIAIS'!E42 -> 1.1455 | E5: Mensalista: | F5: ='ENCARGOS SOCIAIS'!F42 -> 0.7011
A7: Categoria | B7: Profissional | C7: Salário-hora adotado (R$) | D7: Sal. Mensal (R$) | E7: Encargos Sociais (R$) | F7: Sal. Mensal c/ Encargos (R$) | G7: Encargos Sociais (%)
A8: C | B8: Consultor | C8: =INDEX('SALÁRIOS HORAMÊS'!F:F,MATCH(A8,'SALÁRIOS HORAMÊS'!B:B,0)) -> 115.3818182 | D8: =ROUND(C8*$A$26,2) -> 20307.2 | E8: =ROUND(D8*G8%,2) -> 4061.44 | F8: =D8+E8 -> 24368.64 | G8: ='ENCARGOS SOCIAIS'!F9*100 -> 20
A9: P0 | B9: Engenheiro - Profissional Sênior | C9: =INDEX('SALÁRIOS HORAMÊS'!F:F,MATCH(A9,'SALÁRIOS HORAMÊS'!B:B,0)) -> 96.15153409 | D9: =ROUND(C9*$A$26,2) -> 16922.67 | E9: =ROUND(D9*G9%,2) -> 11864.48 | F9: =D9+E9 -> 28787.15 | G9: =$F$5*100 -> 70.11
A10: P1 | B10: Engenheiro - Profissional Pleno | C10: =INDEX('SALÁRIOS HORAMÊS'!F:F,MATCH(A10,'SALÁRIOS HORAMÊS'!B:B,0)) -> 63.22176136 | D10: 11127.03 | E10: 7801.16 | F10: 18928.19 | G10: =$F$5*100 -> 70.11
A11: P2 | B11: Engenheiro - Profissional Médio | C11: =INDEX('SALÁRIOS HORAMÊS'!F:F,MATCH(A11,'SALÁRIOS HORAMÊS'!B:B,0)) -> 58.53409091 | D11: 10302 | E11: 7222.73 | F11: 17524.73 | G11: 70.11
A12: P3 | B12: Engenheiro - Profissional Júnior | C12: =INDEX('SALÁRIOS HORAMÊS'!F:F,MATCH(A12,'SALÁRIOS HORAMÊS'!B:B,0)) -> 58.53409091 | D12: 10302 | E12: 7222.73 | F12: 17524.73 | G12: 70.11
A13: P4 | B13: Engenheiro - Profissional Trainee | C13: =INDEX('SALÁRIOS HORAMÊS'!F:F,MATCH(A13,'SALÁRIOS HORAMÊS'!B:B,0)) -> 79.67 | D13: 14021.92 | E13: 9830.77 | F13: 23852.69 | G13: 70.11
A14: TS | B14: Técnico - Profissional Especial | C14: =INDEX('SALÁRIOS HORAMÊS'!F:F,MATCH(A14,'SALÁRIOS HORAMÊS'!B:B,0)) -> 22.79840909 | D14: 4012.52 | E14: 2813.18 | F14: 6825.7 | G14: 70.11
A15: T0 | B15: Técnico - Profissional Senior | C15: =INDEX('SALÁRIOS HORAMÊS'!F:F,MATCH(A15,'SALÁRIOS HORAMÊS'!B:B,0)) -> 17.26420455 | D15: =ROUND(C15*$A$26,2) -> 3038.5 | E15: =ROUND(D15*G15%,2) -> 2130.29 | F15: 5168.79 | G15: 70.11
A16: T1 | B16: Técnico - Profissional Pleno | C16: =INDEX('SALÁRIOS HORAMÊS'!F:F,MATCH(A16,'SALÁRIOS HORAMÊS'!B:B,0)) -> 14.53585227 | D16: 2558.31 | E16: 1793.63 | F16: 4351.94 | G16: 70.11
A17: T2 | B17: Técnico - Profissional Júnior | C17: =INDEX('SALÁRIOS HORAMÊS'!F:F,MATCH(A17,'SALÁRIOS HORAMÊS'!B:B,0)) -> 13.46755682 | D17: 2370.29 | E17: 1661.81 | F17: 4032.1 | G17: 70.11
A18: T3 | B18: Técnico Auxiliar | C18: =INDEX('SALÁRIOS HORAMÊS'!F:F,MATCH(A18,'SALÁRIOS HORAMÊS'!B:B,0)) -> 7.78 | D18: 1369.28 | E18: 960 | F18: 2329.28 | G18: 70.11
A19: T4 | B19: Servente/Contínuos | C19: =INDEX('SALÁRIOS HORAMÊS'!F:F,MATCH(A19,'SALÁRIOS HORAMÊS'!B:B,0)) -> 7.78 | D19: 1369.28 | E19: 960 | F19: 2329.28 | G19: 70.11
A20: AS | B20: Chefe de Escritório | C20: =INDEX('SALÁRIOS HORAMÊS'!F:F,MATCH(A20,'SALÁRIOS HORAMÊS'!B:B,0)) -> 20.190625 | D20: 3553.55 | E20: 2491.39 | F20: 6044.94 | G20: 70.11
A21: A0 | B21: Secretária | C21: =INDEX('SALÁRIOS HORAMÊS'!F:F,MATCH(A21,'SALÁRIOS HORAMÊS'!B:B,0)) -> 12.97142045 | D21: 2282.97 | E21: 1600.59 | F21: 3883.56 | G21: 70.11
A22: A1 | B22: Assistente Administrativo | C22: =INDEX('SALÁRIOS HORAMÊS'!F:F,MATCH(A22,'SALÁRIOS HORAMÊS'!B:B,0)) -> 9.332556818 | D22: 1642.53 | E22: 1151.58 | F22: 2794.11 | G22: 70.11
A23: A2 | B23: Ajudante Administrativo | C23: =INDEX('SALÁRIOS HORAMÊS'!F:F,MATCH(A23,'SALÁRIOS HORAMÊS'!B:B,0)) -> 7.78 | D23: 1369.28 | E23: 960 | F23: 2329.28 | G23: 70.11
A24: A3 | B24: Auxiliar Administrativo/Motorista | C24: =INDEX('SALÁRIOS HORAMÊS'!F:F,MATCH(A24,'SALÁRIOS HORAMÊS'!B:B,0)) -> 10.45835227 | D24: 1840.67 | E24: 1290.49 | F24: 3131.16 | G24: 70.11
A25: A4 | B25: Serviços Gerais/Vigia | C25: =INDEX('SALÁRIOS HORAMÊS'!F:F,MATCH(A25,'SALÁRIOS HORAMÊS'!B:B,0)) -> 9.51 | D25: 1673.76 | E25: 1173.47 | F25: 2847.23 | G25: 70.11
A26: 176 | B26: hrs/mês
T33: '

Sheet ENCARGOS SOCIAIS
A1: '
A3: SINAPI - PERNAMBUCO | E3: VIGÊNCIA A PARTIR DE | F3: 12/2022
A5: ENCARGOS SOCIAIS SOBRE A MÃO DE OBRA
A6: CÓDIGO | B6: DESCRIÇÃO | C6: COM DESONERAÇÃO | E6: SEM DESONERAÇÃO
A7: CÓDIGO | B7: DESCRIÇÃO | C7: HORISTA % | D7: MENSALISTA % | E7: HORISTA % | F7: MENSALISTA %
A8: GRUPO A
A9: A1 | B9: INSS | C9: 0 | D9: 0 | E9: 0.2 | F9: 0.2
A10: A2 | B10: SESI | C10: 0.015 | D10: 0.015 | E10: 0.015 | F10: 0.015
A11: A3 | B11: SENAI | C11: 0.01 | D11: 0.01 | E11: 0.01 | F11: 0.01
A12: A4 | B12: INCRA | C12: 0.002 | D12: 0.002 | E12: 0.002 | F12: 0.002
A13: A5 | B13: SEBRAE | C13: 0.006 | D13: 0.006 | E13: 0.006 | F13: 0.006
A14: A6 | B14: Salário Educação | C14: 0.025 | D14: 0.025 | E14: 0.025 | F14: 0.025
A15: A7 | B15: Seguro Contra Acidentes de Trabalho | C15: 0.03 | D15: 0.03 | E15: 0.03 | F15: 0.03
A16: A8 | B16: FGTS | C16: 0.08 | D16: 0.08 | E16: 0.08 | F16: 0.08
A17: A9 | B17: SECONCI | C17: 0 | D17: 0 | E17: 0 | F17: 0
A18: A | B18: Total | C18: =SUBTOTAL(9,C9:C17) -> 0.168 | D18: =SUBTOTAL(9,D9:D17) -> 0.168 | E18: =SUBTOTAL(9,E9:E17) -> 0.368 | F18: =SUBTOTAL(9,F9:F17) -> 0.368
A19: GRUPO B
A20: B1 | B20: Repouso Semanal Remunerado | C20: 0.1806 | D20: Não incide | E20: 0.1806 | F20: Não incide
A21: B2 | B21: Feriados | C21: 0.0433 | D21: Não incide | E21: 0.0433 | F21: Não incide
A22: B3 | B22: Auxílio - Enfermidade | C22: 0.0087 | D22: 0.0066 | E22: 0.0087 | F22: 0.0066
A23: B4 | B23: 13º Salário | C23: 0.1103 | D23: 0.0833 | E23: 0.1103 | F23: 0.0833
A24: B5 | B24: Licença Paternidade | C24: 0.0007 | D24: 0.0005 | E24: 0.0007 | F24: 0.0005
A25: B6 | B25: Faltas Justificadas | C25: 0.0074 | D25: 0.0056 | E25: 0.0074 | F25: 0.0056
A26: B7 | B26: Dias de Chuvas | C26: 0.0223 | D26: Não incide | E26: 0.0223 | F26: Não incide
A27: B8 | B27: Auxílio Acidente de Trabalho | C27: 0.0011 | D27: 0.0008 | E27: 0.0011 | F27: 0.0008
A28: B9 | B28: Férias Gozadas | C28: 0.1046 | D28: 0.079 | E28: 0.1046 | F28: 0.079
A29: B10 | B29: Salário Maternidade | C29: 0.0004 | D29: 0.0003 | E29: 0.0004 | F29: 0.0003
A30: B | B30: Total | C30: =SUBTOTAL(9,C20:C29) -> 0.4794 | D30: =SUBTOTAL(9,D20:D29) -> 0.1761 | E30: =SUBTOTAL(9,E20:E29) -> 0.4794 | F30: =SUBTOTAL(9,F20:F29) -> 0.1761
A31: GRUPO C
A32: C1 | B32: Aviso Prévio Indenizado | C32: 0.048 | D32: 0.0363 | E32: 0.048 | F32: 0.0363
A33: C2 | B33: Aviso Prévio Trabalhado | C33: 0.0011 | D33: 0.0009 | E33: 0.0011 | F33: 0.0009 | S33: '
A34: C3 | B34: Férias Indenizadas | C34: 0.0349 | D34: 0.0264 | E34: 0.0349 | F34: 0.0264
A35: C4 | B35: Depósito Rescisão Sem Justa Causa | C35: 0.0295 | D35: 0.0223 | E35: 0.0295 | F35: 0.0223
A36: C5 | B36: Indenização Adicional | C36: 0.004 | D36: 0.0031 | E36: 0.004 | F36: 0.0031
A37: C | B37: Total | C37: =SUBTOTAL(9,C32:C36) -> 0.1175 | D37: =SUBTOTAL(9,D32:D36) -> 0.089 | E37: =SUBTOTAL(9,E32:E36) -> 0.1175 | F37: =SUBTOTAL(9,F32:F36) -> 0.089
A38: GRUPO D
A39: D1 | B39: Reincidência de Grupo A sobre Grupo B | C39: 0.0805 | D39: 0.0296 | E39: 0.1764 | F39: 0.0648
A40: D2 | B40: Reincidência de Grupo A sobre Aviso Prévio Trabalhado e Reincidência do FGTS sobre Aviso Prévio Indenizado | C40: 0.004 | D40: 0.0031 | E40: 0.0042 | F40: 0.0032
A41: D | B41: Total | C41: =SUBTOTAL(9,C39:C40) -> 0.0845 | D41: =SUBTOTAL(9,D39:D40) -> 0.0327 | E41: =SUBTOTAL(9,E39:E40) -> 0.1806 | F41: =SUBTOTAL(9,F39:F40) -> 0.068
A42: TOTAL(A+B+C+D) | C42: =SUBTOTAL(9,C8:C41) -> 0.8494 | D42: =SUBTOTAL(9,D8:D41) -> 0.4658 | E42: =SUBTOTAL(9,E8:E41) -> 1.1455 | F42: =SUBTOTAL(9,F8:F41) -> 0.7011

Sheet FCON4_OS
A1: ORDEM DE SERVIÇO | H1: CODIGO:
H2: O.S.
A3: NOME DA CONSULTORA:
A5: PROJETO: | D5: PRODUTO: | H5: CONTRATO:
A6: SERVIÇOS ESPECIALIZADOS PARA ELABORAÇÃO DOS RELATÓRIOS DE REVISÃO PERIÓDICA DE SEGURANÇA DE BARRAGEM (RPSB) DO EIXO LESTE - PISF
A7: Cod. | B7: Categoria / Insumo | C7: Uni | D7: Qde | E7: CUD | F7: PU | G7: FatorK | H7: CT | I7: PT
A8: MO | B8: Mão de Obra | H8: =SUM(H9:H22) -> 0 | I8: =SUM(I9:I22) -> 0
A9: P0 | B9: Coordenador Geral | C9: mês
A10: P1 | B10: Engenheiro Hidráulico | C10: mês
A11: P1 | B11: Engenheiro Hidrólogo | C11: mês
A12: P1 | B12: Engenheiro Geotécnico | C12: mês
A13: P1 | B13: Engenheiro Estrutural | C13: mês
A14: P1 | B14: Engenheiro Mecânico | C14: mês
A15: P1 | B15: Engenheiro Eletricista | C15: mês
A16: P1 | B16: Geólogo | C16: mês
A17: T1 | B17: Técnico Cadista/Estruturas | C17: mês
A18: T1 | B18: Técnico Geopro/Hidrologia | C18: mês
A19: T1 | B19: Topógrafo | C19: mês
A20: T3 | B20: Auxiliar de Topografia | C20: mês
A21: A1 | B21: Secretário | C21: mês
A22: A1 | B22: Redator/Revisor/Editor | C22: mês
A23: DP | B23: Diárias e Passagens | H23: =SUM(H24:H26) -> 0 | I23: =SUM(I24:I26) -> 0
A24: V0 | B24: Diárias | C24: dia
A25: V1 | B25: Aluguel Hatch 1.4 flex c/ Motorista | C25: dia
A26: V2 | B26: Passagens Aéreas (ida e volta) | C26: un
A27: MC | B27: Materiais de Consumo | H27: =SUM(H28:H31) -> 0 | I27: =SUM(I28:I31) -> 0
A28: M1 | B28: Notebook | C28: un x mês
A29: M2 | B29: Pendrive 64GB | C29: un
A30: M3 | B30: HD Externo 2TB | C30: un
A31: M4 | B31: Impressoras | C31: un x mês
A32: EQ | B32: Equipamento | H32: =SUM(H33:H34) -> 0 | I32: =SUM(I33:I34) -> 0
A33: M1 | B33: Veículo pick-up 4x4 cabine dupla diesel | C33: mês
A34: M2 | B34: Estação total completa | C34: mês
A35: EC | B35: Escritório Central
A36: E1 | B36: Escritório Central inclusive materiais e equipamentos
A37: VALOR TOTAL DOS CUSTOS DIRETOS | F37: =H8+H27++H32+H23 -> 0
A38: A1 - ENCARGOS SOCIAIS = 77,25% x CT(MO) | F38: =H8*0.7725 -> 0
A39: A2 - CUSTOS DA ADMINISTRAÇÃO CENTRAL = 25% x CT(MO) | F39: =0.25*H8 -> 0
A40: A3 - LUCRO = 10% x [A1 + A2 + CT(MO) + CT(DP) + CT(MC)] | F40: =0.1*SUM(F37:I39) -> 0
A41: A4 - DESPESAS FISCAIS = 16.61% x [A1 + A2 + A3+ CT(MO) + CT(DP) + CT(MC)] | F41: =0.1661*SUM(F37:I40) -> 0
A42: VALOR TOTAL DO PRODUTO | F42: =I8+I27+I23+I32 -> 0
A43: FISCAL DO CONTRATO Nº _______________________: | H43: PRAZO DE ELABORAÇÃO:
A45: ASSINATURA: | H45: DATA DE AUTORIZAÇÃO:
A47: OBSERVAÇÃO:
A48: O PRODUTO DEVE SER ELABORADO CONFORME ESPECIFICAÇÕES DADAS NO TERMO DE REFERÊNCIA E EDITAL, COM AS MODIFICAÇÕES TÉCNICAS E ESPECIFICIDADES ESTABELECIDAS NO ANEXO DESTA ORDEM DE SERVIÇO.
